Workbook

Sheet Project Parameters
B1: [Company Name]
B2: =Actuals!B2 -> Project Analysis for Business Consulting Firms
B3: Company Confidential
B4: Dark gray cells will be calculated for you. You do not need to enter anything into them.
B5: Project type | C5: Account manager | D5: Project manager | E5: Business analyst | F5: Process specialist | G5: Finance specialist | H5: Administration staff | I5: Total
B6: Business continuity planning | C6: 10% | D6: 20% | E6: 40% | F6: 10% | G6: 10% | H6: 10% | I6: =SUM(C6:H6) -> 100%
B7: Business process re-engineering | C7: 10% | D7: 10% | E7: 10% | F7: 50% | G7: 10% | H7: 10% | I7: 100%
B8: Cost reduction | C8: 10% | D8: 20% | E8: 10% | F8: 20% | G8: 30% | H8: 10% | I8: 100%
B9: Process improvement | C9: 10% | D9: 20% | E9: 10% | F9: 40% | G9: 10% | H9: 10% | I9: 100%
B10: Sarbanes-Oxley | C10: 10% | D10: 20% | E10: 20% | F10: 20% | G10: 20% | H10: 10% | I10: 100%
B11: Strategic planning | C11: 10% | D11: 10% | E11: 50% | F11: 0% | G11: 20% | H11: 10% | I11: 100%
B13: Blended rates | C13: € 250.00 | D13: € 225.00 | E13: € 200.00 | F13: € 175.00 | G13: € 150.00 | H13: € 50.00

Sheet Actuals
B1: [Company Name]
B2: Project Analysis for Business Consulting Firms
B3: Company Confidential
B5: Dark gray cells will be calculated for you. You do not need to enter anything into them.
B6: Project name | C6: Project type | D6: Actual start | E6: Actual finish | F6: Actual work in hours | G6: Duration in days
B7: A. Datum Corporation | C7: Business continuity planning | D7: 2004-01-04 | E7: 2004-03-04 | F7: 200 | G7: =DAYS360(D7,E7,FALSE) -> 60
B8: Adventure Works | C8: Business process re-engineering | D8: 2004-01-20 | E8: 2004-02-21 | F8: 400 | G8: =DAYS360(D8,E8,FALSE) -> 31
B9: Alpine Ski House | C9: Cost reduction | D9: 2004-02-06 | E9: 2004-04-16 | F9: 500 | G9: 70
B10: Baldwin Museum of Science | C10: Process improvement | D10: 2004-02-24 | E10: 2004-04-25 | F10: 150 | G10: 61
B11: Blue Yonder Airlines | C11: Cost reduction | D11: 2004-03-08 | E11: 2004-03-18 | F11: 250 | G11: 10
B12: City Power & Light | C12: Sarbanes-Oxley | D12: 2004-03-19 | E12: 2004-04-29 | F12: 300 | G12: 40
B13: Coho Vineyard | C13: Strategic planning | D13: 2004-04-10 | E13: 2004-04-20 | F13: 500 | G13: 10
B14: Coho Winery | C14: Cost reduction | D14: 2004-04-18 | E14: 2004-05-12 | F14: 750 | G14: 24
B15: Coho Vineyard & Winery | C15: Sarbanes-Oxley | D15: 2004-05-12 | E15: 2004-06-22 | F15: 450 | G15: 40
B16: Contoso, Ltd. | C16: Cost reduction | D16: 2004-05-23 | E16: 2004-07-21 | F16: 250 | G16: 58
B17: Contoso Pharmaceuticals | C17: Business process re-engineering | D17: 2004-06-14 | E17: 2004-08-12 | F17: 200 | G17: 58
B18: Consolidated Messenger | C18: Process improvement | D18: 2004-06-30 | E18: 2004-08-30 | F18: 180 | G18: 60
B19: Fabrikam, Inc. | C19: Cost reduction | D19: 2004-01-16 | E19: 2004-08-15 | F19: 250 | G19: 209
B20: Fourth Coffee | C20: Sarbanes-Oxley | D20: 2004-07-17 | E20: 2004-09-01 | F20: 240 | G20: 44
B21: Graphic Design Institute | C21: Sarbanes-Oxley | D21: 2004-07-25 | E21: 2004-09-30 | F21: 320 | G21: 65
B22: Humongous Insurance | C22: Cost reduction | D22: 2004-08-01 | E22: 2004-10-01 | F22: 550 | G22: 60
B23: Litware, Inc. | C23: Strategic planning | D23: 2004-08-20 | E23: 2004-10-02 | F23: 350 | G23: 42
B24: Lucerne Publishing | C24: Business continuity planning | D24: 2004-09-02 | E24: 2004-11-12 | F24: 200 | G24: 70
B25: Margie's Travel | C25: Cost reduction | D25: 2004-09-12 | E25: 2004-11-25 | F25: 220 | G25: 73
B26: Northwind Traders | C26: Process improvement | D26: 2004-10-12 | E26: 2004-12-20 | F26: 600 | G26: 68
B27: Proseware, Inc. | C27: Sarbanes-Oxley | D27: 2004-10-24 | E27: 2004-12-14 | F27: 525 | G27: 50
B28: School of Fine Art | C28: Cost reduction | D28: 2004-11-04 | E28: 2004-11-24 | F28: 180 | G28: 20
B30: Total | F30: =SUM(F7:F28) -> 7,565

Sheet Actual Totals
B1: [Company Name]
B2: =Actuals!B2 -> Project Analysis for Business Consulting Firms
B3: Company Confidential
B5: Project name | C5: ='Project Parameters'!C5 -> Account manager | D5: ='Project Parameters'!D5 -> Project manager | E5: ='Project Parameters'!E5 -> Business analyst | F5: ='Project Parameters'!F5 -> Process specialist | G5: ='Project Parameters'!G5 -> Finance specialist | H5: ='Project Parameters'!H5 -> Administration staff | I5: Month of completion | J5: Total billings
B6: A. Datum Corporation | C6: =IF( Actuals!$C7 = 'Project Parameters'!$B$6, 'Project Parameters'!C$6 * 'Project Parameters'!C$13 * Actuals!$F7, IF(Actuals!$C7 = 'Project Parameters'!$B$7, 'Project Parameters'!C$7 * 'Project Parameters'!C$13 * Actuals!$F7, IF(Actuals!$C7 = 'Project Parameters'!$B$8, 'Project Parameters'!C$8 * 'Project Parameters'!C$13 * Actuals!$F7, IF(Actuals!$C7 = 'Project Parameters'!$B$9, 'Project Parameters'!C$9 * 'Project Parameters'!C$13 * Actuals!$F7, IF(Actuals!$C7 = 'Project Parameters'!$B$10, 'Project Parameters'!C$10 * 'Project Parameters'!C$13 * Actuals!$F7, IF(Actuals!$C7 = 'Project Parameters'!$B$11, 'Project Parameters'!C$11 * 'Project Parameters'!C$13 * Actuals!$F7,error)))))) -> € 5,000.00 | D6: =IF( Actuals!$C7 = 'Project Parameters'!$B$6, 'Project Parameters'!D$6 * 'Project Parameters'!D$13 * Actuals!$F7, IF(Actuals!$C7 = 'Project Parameters'!$B$7, 'Project Parameters'!D$7 * 'Project Parameters'!D$13 * Actuals!$F7, IF(Actuals!$C7 = 'Project Parameters'!$B$8, 'Project Parameters'!D$8 * 'Project Parameters'!D$13 * Actuals!$F7, IF(Actuals!$C7 = 'Project Parameters'!$B$9, 'Project Parameters'!D$9 * 'Project Parameters'!D$13 * Actuals!$F7, IF(Actuals!$C7 = 'Project Parameters'!$B$10, 'Project Parameters'!D$10 * 'Project Parameters'!D$13 * Actuals!$F7, IF(Actuals!$C7 = 'Project Parameters'!$B$11, 'Project Parameters'!D$11 * 'Project Parameters'!D$13 * Actuals!$F7,error)))))) -> € 9,000.00 | E6: =IF( Actuals!$C7 = 'Project Parameters'!$B$6, 'Project Parameters'!E$6 * 'Project Parameters'!E$13 * Actuals!$F7, IF(Actuals!$C7 = 'Project Parameters'!$B$7, 'Project Parameters'!E$7 * 'Project Parameters'!E$13 * Actuals!$F7, IF(Actuals!$C7 = 'Project Parameters'!$B$8, 'Project Parameters'!E$8 * 'Project Parameters'!E$13 * Actuals!$F7, IF(Actuals!$C7 = 'Project Parameters'!$B$9, 'Project Parameters'!E$9 * 'Project Parameters'!E$13 * Actuals!$F7, IF(Actuals!$C7 = 'Project Parameters'!$B$10, 'Project Parameters'!E$10 * 'Project Parameters'!E$13 * Actuals!$F7, IF(Actuals!$C7 = 'Project Parameters'!$B$11, 'Project Parameters'!E$11 * 'Project Parameters'!E$13 * Actuals!$F7,error)))))) -> € 16,000.00 | F6: =IF( Actuals!$C7 = 'Project Parameters'!$B$6, 'Project Parameters'!F$6 * 'Project Parameters'!F$13 * Actuals!$F7, IF(Actuals!$C7 = 'Project Parameters'!$B$7, 'Project Parameters'!F$7 * 'Project Parameters'!F$13 * Actuals!$F7, IF(Actuals!$C7 = 'Project Parameters'!$B$8, 'Project Parameters'!F$8 * 'Project Parameters'!F$13 * Actuals!$F7, IF(Actuals!$C7 = 'Project Parameters'!$B$9, 'Project Parameters'!F$9 * 'Project Parameters'!F$13 * Actuals!$F7, IF(Actuals!$C7 = 'Project Parameters'!$B$10, 'Project Parameters'!F$10 * 'Project Parameters'!F$13 * Actuals!$F7, IF(Actuals!$C7 = 'Project Parameters'!$B$11, 'Project Parameters'!F$11 * 'Project Parameters'!F$13 * Actuals!$F7,error)))))) -> € 3,500.00 | G6: =IF( Actuals!$C7 = 'Project Parameters'!$B$6, 'Project Parameters'!G$6 * 'Project Parameters'!G$13 * Actuals!$F7, IF(Actuals!$C7 = 'Project Parameters'!$B$7, 'Project Parameters'!G$7 * 'Project Parameters'!G$13 * Actuals!$F7, IF(Actuals!$C7 = 'Project Parameters'!$B$8, 'Project Parameters'!G$8 * 'Project Parameters'!G$13 * Actuals!$F7, IF(Actuals!$C7 = 'Project Parameters'!$B$9, 'Project Parameters'!G$9 * 'Project Parameters'!G$13 * Actuals!$F7, IF(Actuals!$C7 = 'Project Parameters'!$B$10, 'Project Parameters'!G$10 * 'Project Parameters'!G$13 * Actuals!$F7, IF(Actuals!$C7 = 'Project Parameters'!$B$11, 'Project Parameters'!G$11 * 'Project Parameters'!G$13 * Actuals!$F7,error)))))) -> € 3,000.00 | H6: =IF( Actuals!$C7 = 'Project Parameters'!$B$6, 'Project Parameters'!H$6 * 'Project Parameters'!H$13 * Actuals!$F7, IF(Actuals!$C7 = 'Project Parameters'!$B$7, 'Project Parameters'!H$7 * 'Project Parameters'!H$13 * Actuals!$F7, IF(Actuals!$C7 = 'Project Parameters'!$B$8, 'Project Parameters'!H$8 * 'Project Parameters'!H$13 * Actuals!$F7, IF(Actuals!$C7 = 'Project Parameters'!$B$9, 'Project Parameters'!H$9 * 'Project Parameters'!H$13 * Actuals!$F7, IF(Actuals!$C7 = 'Project Parameters'!$B$10, 'Project Parameters'!H$10 * 'Project Parameters'!H$13 * Actuals!$F7, IF(Actuals!$C7 = 'Project Parameters'!$B$11, 'Project Parameters'!H$11 * 'Project Parameters'!H$13 * Actuals!$F7,error)))))) -> € 1,000.00 | I6: =MONTH(Actuals!E7) -> 3 | J6: =SUM(C6:H6) -> € 37,500.00
B7: Adventure Works | C7: =IF( Actuals!$C8 = 'Project Parameters'!$B$6, 'Project Parameters'!C$6 * 'Project Parameters'!C$13 * Actuals!$F8, IF(Actuals!$C8 = 'Project Parameters'!$B$7, 'Project Parameters'!C$7 * 'Project Parameters'!C$13 * Actuals!$F8, IF(Actuals!$C8 = 'Project Parameters'!$B$8, 'Project Parameters'!C$8 * 'Project Parameters'!C$13 * Actuals!$F8, IF(Actuals!$C8 = 'Project Parameters'!$B$9, 'Project Parameters'!C$9 * 'Project Parameters'!C$13 * Actuals!$F8, IF(Actuals!$C8 = 'Project Parameters'!$B$10, 'Project Parameters'!C$10 * 'Project Parameters'!C$13 * Actuals!$F8, IF(Actuals!$C8 = 'Project Parameters'!$B$11, 'Project Parameters'!C$11 * 'Project Parameters'!C$13 * Actuals!$F8,error)))))) -> € 10,000.00 | D7: =IF( Actuals!$C8 = 'Project Parameters'!$B$6, 'Project Parameters'!D$6 * 'Project Parameters'!D$13 * Actuals!$F8, IF(Actuals!$C8 = 'Project Parameters'!$B$7, 'Project Parameters'!D$7 * 'Project Parameters'!D$13 * Actuals!$F8, IF(Actuals!$C8 = 'Project Parameters'!$B$8, 'Project Parameters'!D$8 * 'Project Parameters'!D$13 * Actuals!$F8, IF(Actuals!$C8 = 'Project Parameters'!$B$9, 'Project Parameters'!D$9 * 'Project Parameters'!D$13 * Actuals!$F8, IF(Actuals!$C8 = 'Project Parameters'!$B$10, 'Project Parameters'!D$10 * 'Project Parameters'!D$13 * Actuals!$F8, IF(Actuals!$C8 = 'Project Parameters'!$B$11, 'Project Parameters'!D$11 * 'Project Parameters'!D$13 * Actuals!$F8,error)))))) -> € 9,000.00 | E7: =IF( Actuals!$C8 = 'Project Parameters'!$B$6, 'Project Parameters'!E$6 * 'Project Parameters'!E$13 * Actuals!$F8, IF(Actuals!$C8 = 'Project Parameters'!$B$7, 'Project Parameters'!E$7 * 'Project Parameters'!E$13 * Actuals!$F8, IF(Actuals!$C8 = 'Project Parameters'!$B$8, 'Project Parameters'!E$8 * 'Project Parameters'!E$13 * Actuals!$F8, IF(Actuals!$C8 = 'Project Parameters'!$B$9, 'Project Parameters'!E$9 * 'Project Parameters'!E$13 * Actuals!$F8, IF(Actuals!$C8 = 'Project Parameters'!$B$10, 'Project Parameters'!E$10 * 'Project Parameters'!E$13 * Actuals!$F8, IF(Actuals!$C8 = 'Project Parameters'!$B$11, 'Project Parameters'!E$11 * 'Project Parameters'!E$13 * Actuals!$F8,error)))))) -> € 8,000.00 | F7: =IF( Actuals!$C8 = 'Project Parameters'!$B$6, 'Project Parameters'!F$6 * 'Project Parameters'!F$13 * Actuals!$F8, IF(Actuals!$C8 = 'Project Parameters'!$B$7, 'Project Parameters'!F$7 * 'Project Parameters'!F$13 * Actuals!$F8, IF(Actuals!$C8 = 'Project Parameters'!$B$8, 'Project Parameters'!F$8 * 'Project Parameters'!F$13 * Actuals!$F8, IF(Actuals!$C8 = 'Project Parameters'!$B$9, 'Project Parameters'!F$9 * 'Project Parameters'!F$13 * Actuals!$F8, IF(Actuals!$C8 = 'Project Parameters'!$B$10, 'Project Parameters'!F$10 * 'Project Parameters'!F$13 * Actuals!$F8, IF(Actuals!$C8 = 'Project Parameters'!$B$11, 'Project Parameters'!F$11 * 'Project Parameters'!F$13 * Actuals!$F8,error)))))) -> € 35,000.00 | G7: =IF( Actuals!$C8 = 'Project Parameters'!$B$6, 'Project Parameters'!G$6 * 'Project Parameters'!G$13 * Actuals!$F8, IF(Actuals!$C8 = 'Project Parameters'!$B$7, 'Project Parameters'!G$7 * 'Project Parameters'!G$13 * Actuals!$F8, IF(Actuals!$C8 = 'Project Parameters'!$B$8, 'Project Parameters'!G$8 * 'Project Parameters'!G$13 * Actuals!$F8, IF(Actuals!$C8 = 'Project Parameters'!$B$9, 'Project Parameters'!G$9 * 'Project Parameters'!G$13 * Actuals!$F8, IF(Actuals!$C8 = 'Project Parameters'!$B$10, 'Project Parameters'!G$10 * 'Project Parameters'!G$13 * Actuals!$F8, IF(Actuals!$C8 = 'Project Parameters'!$B$11, 'Project Parameters'!G$11 * 'Project Parameters'!G$13 * Actuals!$F8,error)))))) -> € 6,000.00 | H7: =IF( Actuals!$C8 = 'Project Parameters'!$B$6, 'Project Parameters'!H$6 * 'Project Parameters'!H$13 * Actuals!$F8, IF(Actuals!$C8 = 'Project Parameters'!$B$7, 'Project Parameters'!H$7 * 'Project Parameters'!H$13 * Actuals!$F8, IF(Actuals!$C8 = 'Project Parameters'!$B$8, 'Project Parameters'!H$8 * 'Project Parameters'!H$13 * Actuals!$F8, IF(Actuals!$C8 = 'Project Parameters'!$B$9, 'Project Parameters'!H$9 * 'Project Parameters'!H$13 * Actuals!$F8, IF(Actuals!$C8 = 'Project Parameters'!$B$10, 'Project Parameters'!H$10 * 'Project Parameters'!H$13 * Actuals!$F8, IF(Actuals!$C8 = 'Project Parameters'!$B$11, 'Project Parameters'!H$11 * 'Project Parameters'!H$13 * Actuals!$F8,error)))))) -> € 2,000.00 | I7: =MONTH(Actuals!E8) -> 2 | J7: € 70,000.00
B8: Alpine Ski House | C8: =IF( Actuals!$C9 = 'Project Parameters'!$B$6, 'Project Parameters'!C$6 * 'Project Parameters'!C$13 * Actuals!$F9, IF(Actuals!$C9 = 'Project Parameters'!$B$7, 'Project Parameters'!C$7 * 'Project Parameters'!C$13 * Actuals!$F9, IF(Actuals!$C9 = 'Project Parameters'!$B$8, 'Project Parameters'!C$8 * 'Project Parameters'!C$13 * Actuals!$F9, IF(Actuals!$C9 = 'Project Parameters'!$B$9, 'Project Parameters'!C$9 * 'Project Parameters'!C$13 * Actuals!$F9, IF(Actuals!$C9 = 'Project Parameters'!$B$10, 'Project Parameters'!C$10 * 'Project Parameters'!C$13 * Actuals!$F9, IF(Actuals!$C9 = 'Project Parameters'!$B$11, 'Project Parameters'!C$11 * 'Project Parameters'!C$13 * Actuals!$F9,error)))))) -> € 12,500.00 | D8: =IF( Actuals!$C9 = 'Project Parameters'!$B$6, 'Project Parameters'!D$6 * 'Project Parameters'!D$13 * Actuals!$F9, IF(Actuals!$C9 = 'Project Parameters'!$B$7, 'Project Parameters'!D$7 * 'Project Parameters'!D$13 * Actuals!$F9, IF(Actuals!$C9 = 'Project Parameters'!$B$8, 'Project Parameters'!D$8 * 'Project Parameters'!D$13 * Actuals!$F9, IF(Actuals!$C9 = 'Project Parameters'!$B$9, 'Project Parameters'!D$9 * 'Project Parameters'!D$13 * Actuals!$F9, IF(Actuals!$C9 = 'Project Parameters'!$B$10, 'Project Parameters'!D$10 * 'Project Parameters'!D$13 * Actuals!$F9, IF(Actuals!$C9 = 'Project Parameters'!$B$11, 'Project Parameters'!D$11 * 'Project Parameters'!D$13 * Actuals!$F9,error)))))) -> € 22,500.00 | E8: =IF( Actuals!$C9 = 'Project Parameters'!$B$6, 'Project Parameters'!E$6 * 'Project Parameters'!E$13 * Actuals!$F9, IF(Actuals!$C9 = 'Project Parameters'!$B$7, 'Project Parameters'!E$7 * 'Project Parameters'!E$13 * Actuals!$F9, IF(Actuals!$C9 = 'Project Parameters'!$B$8, 'Project Parameters'!E$8 * 'Project Parameters'!E$13 * Actuals!$F9, IF(Actuals!$C9 = 'Project Parameters'!$B$9, 'Project Parameters'!E$9 * 'Project Parameters'!E$13 * Actuals!$F9, IF(Actuals!$C9 = 'Project Parameters'!$B$10, 'Project Parameters'!E$10 * 'Project Parameters'!E$13 * Actuals!$F9, IF(Actuals!$C9 = 'Project Parameters'!$B$11, 'Project Parameters'!E$11 * 'Project Parameters'!E$13 * Actuals!$F9,error)))))) -> € 10,000.00 | F8: =IF( Actuals!$C9 = 'Project Parameters'!$B$6, 'Project Parameters'!F$6 * 'Project Parameters'!F$13 * Actuals!$F9, IF(Actuals!$C9 = 'Project Parameters'!$B$7, 'Project Parameters'!F$7 * 'Project Parameters'!F$13 * Actuals!$F9, IF(Actuals!$C9 = 'Project Parameters'!$B$8, 'Project Parameters'!F$8 * 'Project Parameters'!F$13 * Actuals!$F9, IF(Actuals!$C9 = 'Project Parameters'!$B$9, 'Project Parameters'!F$9 * 'Project Parameters'!F$13 * Actuals!$F9, IF(Actuals!$C9 = 'Project Parameters'!$B$10, 'Project Parameters'!F$10 * 'Project Parameters'!F$13 * Actuals!$F9, IF(Actuals!$C9 = 'Project Parameters'!$B$11, 'Project Parameters'!F$11 * 'Project Parameters'!F$13 * Actuals!$F9,error)))))) -> € 17,500.00 | G8: =IF( Actuals!$C9 = 'Project Parameters'!$B$6, 'Project Parameters'!G$6 * 'Project Parameters'!G$13 * Actuals!$F9, IF(Actuals!$C9 = 'Project Parameters'!$B$7, 'Project Parameters'!G$7 * 'Project Parameters'!G$13 * Actuals!$F9, IF(Actuals!$C9 = 'Project Parameters'!$B$8, 'Project Parameters'!G$8 * 'Project Parameters'!G$13 * Actuals!$F9, IF(Actuals!$C9 = 'Project Parameters'!$B$9, 'Project Parameters'!G$9 * 'Project Parameters'!G$13 * Actuals!$F9, IF(Actuals!$C9 = 'Project Parameters'!$B$10, 'Project Parameters'!G$10 * 'Project Parameters'!G$13 * Actuals!$F9, IF(Actuals!$C9 = 'Project Parameters'!$B$11, 'Project Parameters'!G$11 * 'Project Parameters'!G$13 * Actuals!$F9,error)))))) -> € 22,500.00 | H8: =IF( Actuals!$C9 = 'Project Parameters'!$B$6, 'Project Parameters'!H$6 * 'Project Parameters'!H$13 * Actuals!$F9, IF(Actuals!$C9 = 'Project Parameters'!$B$7, 'Project Parameters'!H$7 * 'Project Parameters'!H$13 * Actuals!$F9, IF(Actuals!$C9 = 'Project Parameters'!$B$8, 'Project Parameters'!H$8 * 'Project Parameters'!H$13 * Actuals!$F9, IF(Actuals!$C9 = 'Project Parameters'!$B$9, 'Project Parameters'!H$9 * 'Project Parameters'!H$13 * Actuals!$F9, IF(Actuals!$C9 = 'Project Parameters'!$B$10, 'Project Parameters'!H$10 * 'Project Parameters'!H$13 * Actuals!$F9, IF(Actuals!$C9 = 'Project Parameters'!$B$11, 'Project Parameters'!H$11 * 'Project Parameters'!H$13 * Actuals!$F9,error)))))) -> € 2,500.00 | I8: =MONTH(Actuals!E9) -> 4 | J8: € 87,500.00
B9: Baldwin Museum of Science | C9: =IF( Actuals!$C10 = 'Project Parameters'!$B$6, 'Project Parameters'!C$6 * 'Project Parameters'!C$13 * Actuals!$F10, IF(Actuals!$C10 = 'Project Parameters'!$B$7, 'Project Parameters'!C$7 * 'Project Parameters'!C$13 * Actuals!$F10, IF(Actuals!$C10 = 'Project Parameters'!$B$8, 'Project Parameters'!C$8 * 'Project Parameters'!C$13 * Actuals!$F10, IF(Actuals!$C10 = 'Project Parameters'!$B$9, 'Project Parameters'!C$9 * 'Project Parameters'!C$13 * Actuals!$F10, IF(Actuals!$C10 = 'Project Parameters'!$B$10, 'Project Parameters'!C$10 * 'Project Parameters'!C$13 * Actuals!$F10, IF(Actuals!$C10 = 'Project Parameters'!$B$11, 'Project Parameters'!C$11 * 'Project Parameters'!C$13 * Actuals!$F10,error)))))) -> € 3,750.00 | D9: =IF( Actuals!$C10 = 'Project Parameters'!$B$6, 'Project Parameters'!D$6 * 'Project Parameters'!D$13 * Actuals!$F10, IF(Actuals!$C10 = 'Project Parameters'!$B$7, 'Project Parameters'!D$7 * 'Project Parameters'!D$13 * Actuals!$F10, IF(Actuals!$C10 = 'Project Parameters'!$B$8, 'Project Parameters'!D$8 * 'Project Parameters'!D$13 * Actuals!$F10, IF(Actuals!$C10 = 'Project Parameters'!$B$9, 'Project Parameters'!D$9 * 'Project Parameters'!D$13 * Actuals!$F10, IF(Actuals!$C10 = 'Project Parameters'!$B$10, 'Project Parameters'!D$10 * 'Project Parameters'!D$13 * Actuals!$F10, IF(Actuals!$C10 = 'Project Parameters'!$B$11, 'Project Parameters'!D$11 * 'Project Parameters'!D$13 * Actuals!$F10,error)))))) -> € 6,750.00 | E9: =IF( Actuals!$C10 = 'Project Parameters'!$B$6, 'Project Parameters'!E$6 * 'Project Parameters'!E$13 * Actuals!$F10, IF(Actuals!$C10 = 'Project Parameters'!$B$7, 'Project Parameters'!E$7 * 'Project Parameters'!E$13 * Actuals!$F10, IF(Actuals!$C10 = 'Project Parameters'!$B$8, 'Project Parameters'!E$8 * 'Project Parameters'!E$13 * Actuals!$F10, IF(Actuals!$C10 = 'Project Parameters'!$B$9, 'Project Parameters'!E$9 * 'Project Parameters'!E$13 * Actuals!$F10, IF(Actuals!$C10 = 'Project Parameters'!$B$10, 'Project Parameters'!E$10 * 'Project Parameters'!E$13 * Actuals!$F10, IF(Actuals!$C10 = 'Project Parameters'!$B$11, 'Project Parameters'!E$11 * 'Project Parameters'!E$13 * Actuals!$F10,error)))))) -> € 3,000.00 | F9: =IF( Actuals!$C10 = 'Project Parameters'!$B$6, 'Project Parameters'!F$6 * 'Project Parameters'!F$13 * Actuals!$F10, IF(Actuals!$C10 = 'Project Parameters'!$B$7, 'Project Parameters'!F$7 * 'Project Parameters'!F$13 * Actuals!$F10, IF(Actuals!$C10 = 'Project Parameters'!$B$8, 'Project Parameters'!F$8 * 'Project Parameters'!F$13 * Actuals!$F10, IF(Actuals!$C10 = 'Project Parameters'!$B$9, 'Project Parameters'!F$9 * 'Project Parameters'!F$13 * Actuals!$F10, IF(Actuals!$C10 = 'Project Parameters'!$B$10, 'Project Parameters'!F$10 * 'Project Parameters'!F$13 * Actuals!$F10, IF(Actuals!$C10 = 'Project Parameters'!$B$11, 'Project Parameters'!F$11 * 'Project Parameters'!F$13 * Actuals!$F10,error)))))) -> € 10,500.00 | G9: =IF( Actuals!$C10 = 'Project Parameters'!$B$6, 'Project Parameters'!G$6 * 'Project Parameters'!G$13 * Actuals!$F10, IF(Actuals!$C10 = 'Project Parameters'!$B$7, 'Project Parameters'!G$7 * 'Project Parameters'!G$13 * Actuals!$F10, IF(Actuals!$C10 = 'Project Parameters'!$B$8, 'Project Parameters'!G$8 * 'Project Parameters'!G$13 * Actuals!$F10, IF(Actuals!$C10 = 'Project Parameters'!$B$9, 'Project Parameters'!G$9 * 'Project Parameters'!G$13 * Actuals!$F10, IF(Actuals!$C10 = 'Project Parameters'!$B$10, 'Project Parameters'!G$10 * 'Project Parameters'!G$13 * Actuals!$F10, IF(Actuals!$C10 = 'Project Parameters'!$B$11, 'Project Parameters'!G$11 * 'Project Parameters'!G$13 * Actuals!$F10,error)))))) -> € 2,250.00 | H9: =IF( Actuals!$C10 = 'Project Parameters'!$B$6, 'Project Parameters'!H$6 * 'Project Parameters'!H$13 * Actuals!$F10, IF(Actuals!$C10 = 'Project Parameters'!$B$7, 'Project Parameters'!H$7 * 'Project Parameters'!H$13 * Actuals!$F10, IF(Actuals!$C10 = 'Project Parameters'!$B$8, 'Project Parameters'!H$8 * 'Project Parameters'!H$13 * Actuals!$F10, IF(Actuals!$C10 = 'Project Parameters'!$B$9, 'Project Parameters'!H$9 * 'Project Parameters'!H$13 * Actuals!$F10, IF(Actuals!$C10 = 'Project Parameters'!$B$10, 'Project Parameters'!H$10 * 'Project Parameters'!H$13 * Actuals!$F10, IF(Actuals!$C10 = 'Project Parameters'!$B$11, 'Project Parameters'!H$11 * 'Project Parameters'!H$13 * Actuals!$F10,error)))))) -> € 750.00 | I9: =MONTH(Actuals!E10) -> 4 | J9: € 27,000.00
B10: Blue Yonder Airlines | C10: =IF( Actuals!$C11 = 'Project Parameters'!$B$6, 'Project Parameters'!C$6 * 'Project Parameters'!C$13 * Actuals!$F11, IF(Actuals!$C11 = 'Project Parameters'!$B$7, 'Project Parameters'!C$7 * 'Project Parameters'!C$13 * Actuals!$F11, IF(Actuals!$C11 = 'Project Parameters'!$B$8, 'Project Parameters'!C$8 * 'Project Parameters'!C$13 * Actuals!$F11, IF(Actuals!$C11 = 'Project Parameters'!$B$9, 'Project Parameters'!C$9 * 'Project Parameters'!C$13 * Actuals!$F11, IF(Actuals!$C11 = 'Project Parameters'!$B$10, 'Project Parameters'!C$10 * 'Project Parameters'!C$13 * Actuals!$F11, IF(Actuals!$C11 = 'Project Parameters'!$B$11, 'Project Parameters'!C$11 * 'Project Parameters'!C$13 * Actuals!$F11,error)))))) -> € 6,250.00 | D10: =IF( Actuals!$C11 = 'Project Parameters'!$B$6, 'Project Parameters'!D$6 * 'Project Parameters'!D$13 * Actuals!$F11, IF(Actuals!$C11 = 'Project Parameters'!$B$7, 'Project Parameters'!D$7 * 'Project Parameters'!D$13 * Actuals!$F11, IF(Actuals!$C11 = 'Project Parameters'!$B$8, 'Project Parameters'!D$8 * 'Project Parameters'!D$13 * Actuals!$F11, IF(Actuals!$C11 = 'Project Parameters'!$B$9, 'Project Parameters'!D$9 * 'Project Parameters'!D$13 * Actuals!$F11, IF(Actuals!$C11 = 'Project Parameters'!$B$10, 'Project Parameters'!D$10 * 'Project Parameters'!D$13 * Actuals!$F11, IF(Actuals!$C11 = 'Project Parameters'!$B$11, 'Project Parameters'!D$11 * 'Project Parameters'!D$13 * Actuals!$F11,error)))))) -> € 11,250.00 | E10: =IF( Actuals!$C11 = 'Project Parameters'!$B$6, 'Project Parameters'!E$6 * 'Project Parameters'!E$13 * Actuals!$F11, IF(Actuals!$C11 = 'Project Parameters'!$B$7, 'Project Parameters'!E$7 * 'Project Parameters'!E$13 * Actuals!$F11, IF(Actuals!$C11 = 'Project Parameters'!$B$8, 'Project Parameters'!E$8 * 'Project Parameters'!E$13 * Actuals!$F11, IF(Actuals!$C11 = 'Project Parameters'!$B$9, 'Project Parameters'!E$9 * 'Project Parameters'!E$13 * Actuals!$F11, IF(Actuals!$C11 = 'Project Parameters'!$B$10, 'Project Parameters'!E$10 * 'Project Parameters'!E$13 * Actuals!$F11, IF(Actuals!$C11 = 'Project Parameters'!$B$11, 'Project Parameters'!E$11 * 'Project Parameters'!E$13 * Actuals!$F11,error)))))) -> € 5,000.00 | F10: =IF( Actuals!$C11 = 'Project Parameters'!$B$6, 'Project Parameters'!F$6 * 'Project Parameters'!F$13 * Actuals!$F11, IF(Actuals!$C11 = 'Project Parameters'!$B$7, 'Project Parameters'!F$7 * 'Project Parameters'!F$13 * Actuals!$F11, IF(Actuals!$C11 = 'Project Parameters'!$B$8, 'Project Parameters'!F$8 * 'Project Parameters'!F$13 * Actuals!$F11, IF(Actuals!$C11 = 'Project Parameters'!$B$9, 'Project Parameters'!F$9 * 'Project Parameters'!F$13 * Actuals!$F11, IF(Actuals!$C11 = 'Project Parameters'!$B$10, 'Project Parameters'!F$10 * 'Project Parameters'!F$13 * Actuals!$F11, IF(Actuals!$C11 = 'Project Parameters'!$B$11, 'Project Parameters'!F$11 * 'Project Parameters'!F$13 * Actuals!$F11,error)))))) -> € 8,750.00 | G10: =IF( Actuals!$C11 = 'Project Parameters'!$B$6, 'Project Parameters'!G$6 * 'Project Parameters'!G$13 * Actuals!$F11, IF(Actuals!$C11 = 'Project Parameters'!$B$7, 'Project Parameters'!G$7 * 'Project Parameters'!G$13 * Actuals!$F11, IF(Actuals!$C11 = 'Project Parameters'!$B$8, 'Project Parameters'!G$8 * 'Project Parameters'!G$13 * Actuals!$F11, IF(Actuals!$C11 = 'Project Parameters'!$B$9, 'Project Parameters'!G$9 * 'Project Parameters'!G$13 * Actuals!$F11, IF(Actuals!$C11 = 'Project Parameters'!$B$10, 'Project Parameters'!G$10 * 'Project Parameters'!G$13 * Actuals!$F11, IF(Actuals!$C11 = 'Project Parameters'!$B$11, 'Project Parameters'!G$11 * 'Project Parameters'!G$13 * Actuals!$F11,error)))))) -> € 11,250.00 | H10: =IF( Actuals!$C11 = 'Project Parameters'!$B$6, 'Project Parameters'!H$6 * 'Project Parameters'!H$13 * Actuals!$F11, IF(Actuals!$C11 = 'Project Parameters'!$B$7, 'Project Parameters'!H$7 * 'Project Parameters'!H$13 * Actuals!$F11, IF(Actuals!$C11 = 'Project Parameters'!$B$8, 'Project Parameters'!H$8 * 'Project Parameters'!H$13 * Actuals!$F11, IF(Actuals!$C11 = 'Project Parameters'!$B$9, 'Project Parameters'!H$9 * 'Project Parameters'!H$13 * Actuals!$F11, IF(Actuals!$C11 = 'Project Parameters'!$B$10, 'Project Parameters'!H$10 * 'Project Parameters'!H$13 * Actuals!$F11, IF(Actuals!$C11 = 'Project Parameters'!$B$11, 'Project Parameters'!H$11 * 'Project Parameters'!H$13 * Actuals!$F11,error)))))) -> € 1,250.00 | I10: =MONTH(Actuals!E11) -> 3 | J10: € 43,750.00
B11: City Power & Light | C11: =IF( Actuals!$C12 = 'Project Parameters'!$B$6, 'Project Parameters'!C$6 * 'Project Parameters'!C$13 * Actuals!$F12, IF(Actuals!$C12 = 'Project Parameters'!$B$7, 'Project Parameters'!C$7 * 'Project Parameters'!C$13 * Actuals!$F12, IF(Actuals!$C12 = 'Project Parameters'!$B$8, 'Project Parameters'!C$8 * 'Project Parameters'!C$13 * Actuals!$F12, IF(Actuals!$C12 = 'Project Parameters'!$B$9, 'Project Parameters'!C$9 * 'Project Parameters'!C$13 * Actuals!$F12, IF(Actuals!$C12 = 'Project Parameters'!$B$10, 'Project Parameters'!C$10 * 'Project Parameters'!C$13 * Actuals!$F12, IF(Actuals!$C12 = 'Project Parameters'!$B$11, 'Project Parameters'!C$11 * 'Project Parameters'!C$13 * Actuals!$F12,error)))))) -> € 7,500.00 | D11: =IF( Actuals!$C12 = 'Project Parameters'!$B$6, 'Project Parameters'!D$6 * 'Project Parameters'!D$13 * Actuals!$F12, IF(Actuals!$C12 = 'Project Parameters'!$B$7, 'Project Parameters'!D$7 * 'Project Parameters'!D$13 * Actuals!$F12, IF(Actuals!$C12 = 'Project Parameters'!$B$8, 'Project Parameters'!D$8 * 'Project Parameters'!D$13 * Actuals!$F12, IF(Actuals!$C12 = 'Project Parameters'!$B$9, 'Project Parameters'!D$9 * 'Project Parameters'!D$13 * Actuals!$F12, IF(Actuals!$C12 = 'Project Parameters'!$B$10, 'Project Parameters'!D$10 * 'Project Parameters'!D$13 * Actuals!$F12, IF(Actuals!$C12 = 'Project Parameters'!$B$11, 'Project Parameters'!D$11 * 'Project Parameters'!D$13 * Actuals!$F12,error)))))) -> € 13,500.00 | E11: =IF( Actuals!$C12 = 'Project Parameters'!$B$6, 'Project Parameters'!E$6 * 'Project Parameters'!E$13 * Actuals!$F12, IF(Actuals!$C12 = 'Project Parameters'!$B$7, 'Project Parameters'!E$7 * 'Project Parameters'!E$13 * Actuals!$F12, IF(Actuals!$C12 = 'Project Parameters'!$B$8, 'Project Parameters'!E$8 * 'Project Parameters'!E$13 * Actuals!$F12, IF(Actuals!$C12 = 'Project Parameters'!$B$9, 'Project Parameters'!E$9 * 'Project Parameters'!E$13 * Actuals!$F12, IF(Actuals!$C12 = 'Project Parameters'!$B$10, 'Project Parameters'!E$10 * 'Project Parameters'!E$13 * Actuals!$F12, IF(Actuals!$C12 = 'Project Parameters'!$B$11, 'Project Parameters'!E$11 * 'Project Parameters'!E$13 * Actuals!$F12,error)))))) -> € 12,000.00 | F11: =IF( Actuals!$C12 = 'Project Parameters'!$B$6, 'Project Parameters'!F$6 * 'Project Parameters'!F$13 * Actuals!$F12, IF(Actuals!$C12 = 'Project Parameters'!$B$7, 'Project Parameters'!F$7 * 'Project Parameters'!F$13 * Actuals!$F12, IF(Actuals!$C12 = 'Project Parameters'!$B$8, 'Project Parameters'!F$8 * 'Project Parameters'!F$13 * Actuals!$F12, IF(Actuals!$C12 = 'Project Parameters'!$B$9, 'Project Parameters'!F$9 * 'Project Parameters'!F$13 * Actuals!$F12, IF(Actuals!$C12 = 'Project Parameters'!$B$10, 'Project Parameters'!F$10 * 'Project Parameters'!F$13 * Actuals!$F12, IF(Actuals!$C12 = 'Project Parameters'!$B$11, 'Project Parameters'!F$11 * 'Project Parameters'!F$13 * Actuals!$F12,error)))))) -> € 10,500.00 | G11: =IF( Actuals!$C12 = 'Project Parameters'!$B$6, 'Project Parameters'!G$6 * 'Project Parameters'!G$13 * Actuals!$F12, IF(Actuals!$C12 = 'Project Parameters'!$B$7, 'Project Parameters'!G$7 * 'Project Parameters'!G$13 * Actuals!$F12, IF(Actuals!$C12 = 'Project Parameters'!$B$8, 'Project Parameters'!G$8 * 'Project Parameters'!G$13 * Actuals!$F12, IF(Actuals!$C12 = 'Project Parameters'!$B$9, 'Project Parameters'!G$9 * 'Project Parameters'!G$13 * Actuals!$F12, IF(Actuals!$C12 = 'Project Parameters'!$B$10, 'Project Parameters'!G$10 * 'Project Parameters'!G$13 * Actuals!$F12, IF(Actuals!$C12 = 'Project Parameters'!$B$11, 'Project Parameters'!G$11 * 'Project Parameters'!G$13 * Actuals!$F12,error)))))) -> € 9,000.00 | H11: =IF( Actuals!$C12 = 'Project Parameters'!$B$6, 'Project Parameters'!H$6 * 'Project Parameters'!H$13 * Actuals!$F12, IF(Actuals!$C12 = 'Project Parameters'!$B$7, 'Project Parameters'!H$7 * 'Project Parameters'!H$13 * Actuals!$F12, IF(Actuals!$C12 = 'Project Parameters'!$B$8, 'Project Parameters'!H$8 * 'Project Parameters'!H$13 * Actuals!$F12, IF(Actuals!$C12 = 'Project Parameters'!$B$9, 'Project Parameters'!H$9 * 'Project Parameters'!H$13 * Actuals!$F12, IF(Actuals!$C12 = 'Project Parameters'!$B$10, 'Project Parameters'!H$10 * 'Project Parameters'!H$13 * Actuals!$F12, IF(Actuals!$C12 = 'Project Parameters'!$B$11, 'Project Parameters'!H$11 * 'Project Parameters'!H$13 * Actuals!$F12,error)))))) -> € 1,500.00 | I11: =MONTH(Actuals!E12) -> 4 | J11: € 54,000.00
B12: Coho Vineyard | C12: =IF( Actuals!$C13 = 'Project Parameters'!$B$6, 'Project Parameters'!C$6 * 'Project Parameters'!C$13 * Actuals!$F13, IF(Actuals!$C13 = 'Project Parameters'!$B$7, 'Project Parameters'!C$7 * 'Project Parameters'!C$13 * Actuals!$F13, IF(Actuals!$C13 = 'Project Parameters'!$B$8, 'Project Parameters'!C$8 * 'Project Parameters'!C$13 * Actuals!$F13, IF(Actuals!$C13 = 'Project Parameters'!$B$9, 'Project Parameters'!C$9 * 'Project Parameters'!C$13 * Actuals!$F13, IF(Actuals!$C13 = 'Project Parameters'!$B$10, 'Project Parameters'!C$10 * 'Project Parameters'!C$13 * Actuals!$F13, IF(Actuals!$C13 = 'Project Parameters'!$B$11, 'Project Parameters'!C$11 * 'Project Parameters'!C$13 * Actuals!$F13,error)))))) -> € 12,500.00 | D12: =IF( Actuals!$C13 = 'Project Parameters'!$B$6, 'Project Parameters'!D$6 * 'Project Parameters'!D$13 * Actuals!$F13, IF(Actuals!$C13 = 'Project Parameters'!$B$7, 'Project Parameters'!D$7 * 'Project Parameters'!D$13 * Actuals!$F13, IF(Actuals!$C13 = 'Project Parameters'!$B$8, 'Project Parameters'!D$8 * 'Project Parameters'!D$13 * Actuals!$F13, IF(Actuals!$C13 = 'Project Parameters'!$B$9, 'Project Parameters'!D$9 * 'Project Parameters'!D$13 * Actuals!$F13, IF(Actuals!$C13 = 'Project Parameters'!$B$10, 'Project Parameters'!D$10 * 'Project Parameters'!D$13 * Actuals!$F13, IF(Actuals!$C13 = 'Project Parameters'!$B$11, 'Project Parameters'!D$11 * 'Project Parameters'!D$13 * Actuals!$F13,error)))))) -> € 11,250.00 | E12: =IF( Actuals!$C13 = 'Project Parameters'!$B$6, 'Project Parameters'!E$6 * 'Project Parameters'!E$13 * Actuals!$F13, IF(Actuals!$C13 = 'Project Parameters'!$B$7, 'Project Parameters'!E$7 * 'Project Parameters'!E$13 * Actuals!$F13, IF(Actuals!$C13 = 'Project Parameters'!$B$8, 'Project Parameters'!E$8 * 'Project Parameters'!E$13 * Actuals!$F13, IF(Actuals!$C13 = 'Project Parameters'!$B$9, 'Project Parameters'!E$9 * 'Project Parameters'!E$13 * Actuals!$F13, IF(Actuals!$C13 = 'Project Parameters'!$B$10, 'Project Parameters'!E$10 * 'Project Parameters'!E$13 * Actuals!$F13, IF(Actuals!$C13 = 'Project Parameters'!$B$11, 'Project Parameters'!E$11 * 'Project Parameters'!E$13 * Actuals!$F13,error)))))) -> € 50,000.00 | F12: =IF( Actuals!$C13 = 'Project Parameters'!$B$6, 'Project Parameters'!F$6 * 'Project Parameters'!F$13 * Actuals!$F13, IF(Actuals!$C13 = 'Project Parameters'!$B$7, 'Project Parameters'!F$7 * 'Project Parameters'!F$13 * Actuals!$F13, IF(Actuals!$C13 = 'Project Parameters'!$B$8, 'Project Parameters'!F$8 * 'Project Parameters'!F$13 * Actuals!$F13, IF(Actuals!$C13 = 'Project Parameters'!$B$9, 'Project Parameters'!F$9 * 'Project Parameters'!F$13 * Actuals!$F13, IF(Actuals!$C13 = 'Project Parameters'!$B$10, 'Project Parameters'!F$10 * 'Project Parameters'!F$13 * Actuals!$F13, IF(Actuals!$C13 = 'Project Parameters'!$B$11, 'Project Parameters'!F$11 * 'Project Parameters'!F$13 * Actuals!$F13,error)))))) -> 0 | G12: =IF( Actuals!$C13 = 'Project Parameters'!$B$6, 'Project Parameters'!G$6 * 'Project Parameters'!G$13 * Actuals!$F13, IF(Actuals!$C13 = 'Project Parameters'!$B$7, 'Project Parameters'!G$7 * 'Project Parameters'!G$13 * Actuals!$F13, IF(Actuals!$C13 = 'Project Parameters'!$B$8, 'Project Parameters'!G$8 * 'Project Parameters'!G$13 * Actuals!$F13, IF(Actuals!$C13 = 'Project Parameters'!$B$9, 'Project Parameters'!G$9 * 'Project Parameters'!G$13 * Actuals!$F13, IF(Actuals!$C13 = 'Project Parameters'!$B$10, 'Project Parameters'!G$10 * 'Project Parameters'!G$13 * Actuals!$F13, IF(Actuals!$C13 = 'Project Parameters'!$B$11, 'Project Parameters'!G$11 * 'Project Parameters'!G$13 * Actuals!$F13,error)))))) -> € 15,000.00 | H12: =IF( Actuals!$C13 = 'Project Parameters'!$B$6, 'Project Parameters'!H$6 * 'Project Parameters'!H$13 * Actuals!$F13, IF(Actuals!$C13 = 'Project Parameters'!$B$7, 'Project Parameters'!H$7 * 'Project Parameters'!H$13 * Actuals!$F13, IF(Actuals!$C13 = 'Project Parameters'!$B$8, 'Project Parameters'!H$8 * 'Project Parameters'!H$13 * Actuals!$F13, IF(Actuals!$C13 = 'Project Parameters'!$B$9, 'Project Parameters'!H$9 * 'Project Parameters'!H$13 * Actuals!$F13, IF(Actuals!$C13 = 'Project Parameters'!$B$10, 'Project Parameters'!H$10 * 'Project Parameters'!H$13 * Actuals!$F13, IF(Actuals!$C13 = 'Project Parameters'!$B$11, 'Project Parameters'!H$11 * 'Project Parameters'!H$13 * Actuals!$F13,error)))))) -> € 2,500.00 | I12: =MONTH(Actuals!E13) -> 4 | J12: € 91,250.00
B13: Coho Winery | C13: =IF( Actuals!$C14 = 'Project Parameters'!$B$6, 'Project Parameters'!C$6 * 'Project Parameters'!C$13 * Actuals!$F14, IF(Actuals!$C14 = 'Project Parameters'!$B$7, 'Project Parameters'!C$7 * 'Project Parameters'!C$13 * Actuals!$F14, IF(Actuals!$C14 = 'Project Parameters'!$B$8, 'Project Parameters'!C$8 * 'Project Parameters'!C$13 * Actuals!$F14, IF(Actuals!$C14 = 'Project Parameters'!$B$9, 'Project Parameters'!C$9 * 'Project Parameters'!C$13 * Actuals!$F14, IF(Actuals!$C14 = 'Project Parameters'!$B$10, 'Project Parameters'!C$10 * 'Project Parameters'!C$13 * Actuals!$F14, IF(Actuals!$C14 = 'Project Parameters'!$B$11, 'Project Parameters'!C$11 * 'Project Parameters'!C$13 * Actuals!$F14,error)))))) -> € 18,750.00 | D13: =IF( Actuals!$C14 = 'Project Parameters'!$B$6, 'Project Parameters'!D$6 * 'Project Parameters'!D$13 * Actuals!$F14, IF(Actuals!$C14 = 'Project Parameters'!$B$7, 'Project Parameters'!D$7 * 'Project Parameters'!D$13 * Actuals!$F14, IF(Actuals!$C14 = 'Project Parameters'!$B$8, 'Project Parameters'!D$8 * 'Project Parameters'!D$13 * Actuals!$F14, IF(Actuals!$C14 = 'Project Parameters'!$B$9, 'Project Parameters'!D$9 * 'Project Parameters'!D$13 * Actuals!$F14, IF(Actuals!$C14 = 'Project Parameters'!$B$10, 'Project Parameters'!D$10 * 'Project Parameters'!D$13 * Actuals!$F14, IF(Actuals!$C14 = 'Project Parameters'!$B$11, 'Project Parameters'!D$11 * 'Project Parameters'!D$13 * Actuals!$F14,error)))))) -> € 33,750.00 | E13: =IF( Actuals!$C14 = 'Project Parameters'!$B$6, 'Project Parameters'!E$6 * 'Project Parameters'!E$13 * Actuals!$F14, IF(Actuals!$C14 = 'Project Parameters'!$B$7, 'Project Parameters'!E$7 * 'Project Parameters'!E$13 * Actuals!$F14, IF(Actuals!$C14 = 'Project Parameters'!$B$8, 'Project Parameters'!E$8 * 'Project Parameters'!E$13 * Actuals!$F14, IF(Actuals!$C14 = 'Project Parameters'!$B$9, 'Project Parameters'!E$9 * 'Project Parameters'!E$13 * Actuals!$F14, IF(Actuals!$C14 = 'Project Parameters'!$B$10, 'Project Parameters'!E$10 * 'Project Parameters'!E$13 * Actuals!$F14, IF(Actuals!$C14 = 'Project Parameters'!$B$11, 'Project Parameters'!E$11 * 'Project Parameters'!E$13 * Actuals!$F14,error)))))) -> € 15,000.00 | F13: =IF( Actuals!$C14 = 'Project Parameters'!$B$6, 'Project Parameters'!F$6 * 'Project Parameters'!F$13 * Actuals!$F14, IF(Actuals!$C14 = 'Project Parameters'!$B$7, 'Project Parameters'!F$7 * 'Project Parameters'!F$13 * Actuals!$F14, IF(Actuals!$C14 = 'Project Parameters'!$B$8, 'Project Parameters'!F$8 * 'Project Parameters'!F$13 * Actuals!$F14, IF(Actuals!$C14 = 'Project Parameters'!$B$9, 'Project Parameters'!F$9 * 'Project Parameters'!F$13 * Actuals!$F14, IF(Actuals!$C14 = 'Project Parameters'!$B$10, 'Project Parameters'!F$10 * 'Project Parameters'!F$13 * Actuals!$F14, IF(Actuals!$C14 = 'Project Parameters'!$B$11, 'Project Parameters'!F$11 * 'Project Parameters'!F$13 * Actuals!$F14,error)))))) -> € 26,250.00 | G13: =IF( Actuals!$C14 = 'Project Parameters'!$B$6, 'Project Parameters'!G$6 * 'Project Parameters'!G$13 * Actuals!$F14, IF(Actuals!$C14 = 'Project Parameters'!$B$7, 'Project Parameters'!G$7 * 'Project Parameters'!G$13 * Actuals!$F14, IF(Actuals!$C14 = 'Project Parameters'!$B$8, 'Project Parameters'!G$8 * 'Project Parameters'!G$13 * Actuals!$F14, IF(Actuals!$C14 = 'Project Parameters'!$B$9, 'Project Parameters'!G$9 * 'Project Parameters'!G$13 * Actuals!$F14, IF(Actuals!$C14 = 'Project Parameters'!$B$10, 'Project Parameters'!G$10 * 'Project Parameters'!G$13 * Actuals!$F14, IF(Actuals!$C14 = 'Project Parameters'!$B$11, 'Project Parameters'!G$11 * 'Project Parameters'!G$13 * Actuals!$F14,error)))))) -> € 33,750.00 | H13: =IF( Actuals!$C14 = 'Project Parameters'!$B$6, 'Project Parameters'!H$6 * 'Project Parameters'!H$13 * Actuals!$F14, IF(Actuals!$C14 = 'Project Parameters'!$B$7, 'Project Parameters'!H$7 * 'Project Parameters'!H$13 * Actuals!$F14, IF(Actuals!$C14 = 'Project Parameters'!$B$8, 'Project Parameters'!H$8 * 'Project Parameters'!H$13 * Actuals!$F14, IF(Actuals!$C14 = 'Project Parameters'!$B$9, 'Project Parameters'!H$9 * 'Project Parameters'!H$13 * Actuals!$F14, IF(Actuals!$C14 = 'Project Parameters'!$B$10, 'Project Parameters'!H$10 * 'Project Parameters'!H$13 * Actuals!$F14, IF(Actuals!$C14 = 'Project Parameters'!$B$11, 'Project Parameters'!H$11 * 'Project Parameters'!H$13 * Actuals!$F14,error)))))) -> € 3,750.00 | I13: =MONTH(Actuals!E14) -> 5 | J13: € 131,250.00
B14: Coho Vineyard & Winery | C14: =IF( Actuals!$C15 = 'Project Parameters'!$B$6, 'Project Parameters'!C$6 * 'Project Parameters'!C$13 * Actuals!$F15, IF(Actuals!$C15 = 'Project Parameters'!$B$7, 'Project Parameters'!C$7 * 'Project Parameters'!C$13 * Actuals!$F15, IF(Actuals!$C15 = 'Project Parameters'!$B$8, 'Project Parameters'!C$8 * 'Project Parameters'!C$13 * Actuals!$F15, IF(Actuals!$C15 = 'Project Parameters'!$B$9, 'Project Parameters'!C$9 * 'Project Parameters'!C$13 * Actuals!$F15, IF(Actuals!$C15 = 'Project Parameters'!$B$10, 'Project Parameters'!C$10 * 'Project Parameters'!C$13 * Actuals!$F15, IF(Actuals!$C15 = 'Project Parameters'!$B$11, 'Project Parameters'!C$11 * 'Project Parameters'!C$13 * Actuals!$F15,error)))))) -> € 11,250.00 | D14: =IF( Actuals!$C15 = 'Project Parameters'!$B$6, 'Project Parameters'!D$6 * 'Project Parameters'!D$13 * Actuals!$F15, IF(Actuals!$C15 = 'Project Parameters'!$B$7, 'Project Parameters'!D$7 * 'Project Parameters'!D$13 * Actuals!$F15, IF(Actuals!$C15 = 'Project Parameters'!$B$8, 'Project Parameters'!D$8 * 'Project Parameters'!D$13 * Actuals!$F15, IF(Actuals!$C15 = 'Project Parameters'!$B$9, 'Project Parameters'!D$9 * 'Project Parameters'!D$13 * Actuals!$F15, IF(Actuals!$C15 = 'Project Parameters'!$B$10, 'Project Parameters'!D$10 * 'Project Parameters'!D$13 * Actuals!$F15, IF(Actuals!$C15 = 'Project Parameters'!$B$11, 'Project Parameters'!D$11 * 'Project Parameters'!D$13 * Actuals!$F15,error)))))) -> € 20,250.00 | E14: =IF( Actuals!$C15 = 'Project Parameters'!$B$6, 'Project Parameters'!E$6 * 'Project Parameters'!E$13 * Actuals!$F15, IF(Actuals!$C15 = 'Project Parameters'!$B$7, 'Project Parameters'!E$7 * 'Project Parameters'!E$13 * Actuals!$F15, IF(Actuals!$C15 = 'Project Parameters'!$B$8, 'Project Parameters'!E$8 * 'Project Parameters'!E$13 * Actuals!$F15, IF(Actuals!$C15 = 'Project Parameters'!$B$9, 'Project Parameters'!E$9 * 'Project Parameters'!E$13 * Actuals!$F15, IF(Actuals!$C15 = 'Project Parameters'!$B$10, 'Project Parameters'!E$10 * 'Project Parameters'!E$13 * Actuals!$F15, IF(Actuals!$C15 = 'Project Parameters'!$B$11, 'Project Parameters'!E$11 * 'Project Parameters'!E$13 * Actuals!$F15,error)))))) -> € 18,000.00 | F14: =IF( Actuals!$C15 = 'Project Parameters'!$B$6, 'Project Parameters'!F$6 * 'Project Parameters'!F$13 * Actuals!$F15, IF(Actuals!$C15 = 'Project Parameters'!$B$7, 'Project Parameters'!F$7 * 'Project Parameters'!F$13 * Actuals!$F15, IF(Actuals!$C15 = 'Project Parameters'!$B$8, 'Project Parameters'!F$8 * 'Project Parameters'!F$13 * Actuals!$F15, IF(Actuals!$C15 = 'Project Parameters'!$B$9, 'Project Parameters'!F$9 * 'Project Parameters'!F$13 * Actuals!$F15, IF(Actuals!$C15 = 'Project Parameters'!$B$10, 'Project Parameters'!F$10 * 'Project Parameters'!F$13 * Actuals!$F15, IF(Actuals!$C15 = 'Project Parameters'!$B$11, 'Project Parameters'!F$11 * 'Project Parameters'!F$13 * Actuals!$F15,error)))))) -> € 15,750.00 | G14: =IF( Actuals!$C15 = 'Project Parameters'!$B$6, 'Project Parameters'!G$6 * 'Project Parameters'!G$13 * Actuals!$F15, IF(Actuals!$C15 = 'Project Parameters'!$B$7, 'Project Parameters'!G$7 * 'Project Parameters'!G$13 * Actuals!$F15, IF(Actuals!$C15 = 'Project Parameters'!$B$8, 'Project Parameters'!G$8 * 'Project Parameters'!G$13 * Actuals!$F15, IF(Actuals!$C15 = 'Project Parameters'!$B$9, 'Project Parameters'!G$9 * 'Project Parameters'!G$13 * Actuals!$F15, IF(Actuals!$C15 = 'Project Parameters'!$B$10, 'Project Parameters'!G$10 * 'Project Parameters'!G$13 * Actuals!$F15, IF(Actuals!$C15 = 'Project Parameters'!$B$11, 'Project Parameters'!G$11 * 'Project Parameters'!G$13 * Actuals!$F15,error)))))) -> € 13,500.00 | H14: =IF( Actuals!$C15 = 'Project Parameters'!$B$6, 'Project Parameters'!H$6 * 'Project Parameters'!H$13 * Actuals!$F15, IF(Actuals!$C15 = 'Project Parameters'!$B$7, 'Project Parameters'!H$7 * 'Project Parameters'!H$13 * Actuals!$F15, IF(Actuals!$C15 = 'Project Parameters'!$B$8, 'Project Parameters'!H$8 * 'Project Parameters'!H$13 * Actuals!$F15, IF(Actuals!$C15 = 'Project Parameters'!$B$9, 'Project Parameters'!H$9 * 'Project Parameters'!H$13 * Actuals!$F15, IF(Actuals!$C15 = 'Project Parameters'!$B$10, 'Project Parameters'!H$10 * 'Project Parameters'!H$13 * Actuals!$F15, IF(Actuals!$C15 = 'Project Parameters'!$B$11, 'Project Parameters'!H$11 * 'Project Parameters'!H$13 * Actuals!$F15,error)))))) -> € 2,250.00 | I14: =MONTH(Actuals!E15) -> 6 | J14: € 81,000.00
B15: Contoso, Ltd. | C15: =IF( Actuals!$C16 = 'Project Parameters'!$B$6, 'Project Parameters'!C$6 * 'Project Parameters'!C$13 * Actuals!$F16, IF(Actuals!$C16 = 'Project Parameters'!$B$7, 'Project Parameters'!C$7 * 'Project Parameters'!C$13 * Actuals!$F16, IF(Actuals!$C16 = 'Project Parameters'!$B$8, 'Project Parameters'!C$8 * 'Project Parameters'!C$13 * Actuals!$F16, IF(Actuals!$C16 = 'Project Parameters'!$B$9, 'Project Parameters'!C$9 * 'Project Parameters'!C$13 * Actuals!$F16, IF(Actuals!$C16 = 'Project Parameters'!$B$10, 'Project Parameters'!C$10 * 'Project Parameters'!C$13 * Actuals!$F16, IF(Actuals!$C16 = 'Project Parameters'!$B$11, 'Project Parameters'!C$11 * 'Project Parameters'!C$13 * Actuals!$F16,error)))))) -> € 6,250.00 | D15: =IF( Actuals!$C16 = 'Project Parameters'!$B$6, 'Project Parameters'!D$6 * 'Project Parameters'!D$13 * Actuals!$F16, IF(Actuals!$C16 = 'Project Parameters'!$B$7, 'Project Parameters'!D$7 * 'Project Parameters'!D$13 * Actuals!$F16, IF(Actuals!$C16 = 'Project Parameters'!$B$8, 'Project Parameters'!D$8 * 'Project Parameters'!D$13 * Actuals!$F16, IF(Actuals!$C16 = 'Project Parameters'!$B$9, 'Project Parameters'!D$9 * 'Project Parameters'!D$13 * Actuals!$F16, IF(Actuals!$C16 = 'Project Parameters'!$B$10, 'Project Parameters'!D$10 * 'Project Parameters'!D$13 * Actuals!$F16, IF(Actuals!$C16 = 'Project Parameters'!$B$11, 'Project Parameters'!D$11 * 'Project Parameters'!D$13 * Actuals!$F16,error)))))) -> € 11,250.00 | E15: =IF( Actuals!$C16 = 'Project Parameters'!$B$6, 'Project Parameters'!E$6 * 'Project Parameters'!E$13 * Actuals!$F16, IF(Actuals!$C16 = 'Project Parameters'!$B$7, 'Project Parameters'!E$7 * 'Project Parameters'!E$13 * Actuals!$F16, IF(Actuals!$C16 = 'Project Parameters'!$B$8, 'Project Parameters'!E$8 * 'Project Parameters'!E$13 * Actuals!$F16, IF(Actuals!$C16 = 'Project Parameters'!$B$9, 'Project Parameters'!E$9 * 'Project Parameters'!E$13 * Actuals!$F16, IF(Actuals!$C16 = 'Project Parameters'!$B$10, 'Project Parameters'!E$10 * 'Project Parameters'!E$13 * Actuals!$F16, IF(Actuals!$C16 = 'Project Parameters'!$B$11, 'Project Parameters'!E$11 * 'Project Parameters'!E$13 * Actuals!$F16,error)))))) -> € 5,000.00 | F15: =IF( Actuals!$C16 = 'Project Parameters'!$B$6, 'Project Parameters'!F$6 * 'Project Parameters'!F$13 * Actuals!$F16, IF(Actuals!$C16 = 'Project Parameters'!$B$7, 'Project Parameters'!F$7 * 'Project Parameters'!F$13 * Actuals!$F16, IF(Actuals!$C16 = 'Project Parameters'!$B$8, 'Project Parameters'!F$8 * 'Project Parameters'!F$13 * Actuals!$F16, IF(Actuals!$C16 = 'Project Parameters'!$B$9, 'Project Parameters'!F$9 * 'Project Parameters'!F$13 * Actuals!$F16, IF(Actuals!$C16 = 'Project Parameters'!$B$10, 'Project Parameters'!F$10 * 'Project Parameters'!F$13 * Actuals!$F16, IF(Actuals!$C16 = 'Project Parameters'!$B$11, 'Project Parameters'!F$11 * 'Project Parameters'!F$13 * Actuals!$F16,error)))))) -> € 8,750.00 | G15: =IF( Actuals!$C16 = 'Project Parameters'!$B$6, 'Project Parameters'!G$6 * 'Project Parameters'!G$13 * Actuals!$F16, IF(Actuals!$C16 = 'Project Parameters'!$B$7, 'Project Parameters'!G$7 * 'Project Parameters'!G$13 * Actuals!$F16, IF(Actuals!$C16 = 'Project Parameters'!$B$8, 'Project Parameters'!G$8 * 'Project Parameters'!G$13 * Actuals!$F16, IF(Actuals!$C16 = 'Project Parameters'!$B$9, 'Project Parameters'!G$9 * 'Project Parameters'!G$13 * Actuals!$F16, IF(Actuals!$C16 = 'Project Parameters'!$B$10, 'Project Parameters'!G$10 * 'Project Parameters'!G$13 * Actuals!$F16, IF(Actuals!$C16 = 'Project Parameters'!$B$11, 'Project Parameters'!G$11 * 'Project Parameters'!G$13 * Actuals!$F16,error)))))) -> € 11,250.00 | H15: =IF( Actuals!$C16 = 'Project Parameters'!$B$6, 'Project Parameters'!H$6 * 'Project Parameters'!H$13 * Actuals!$F16, IF(Actuals!$C16 = 'Project Parameters'!$B$7, 'Project Parameters'!H$7 * 'Project Parameters'!H$13 * Actuals!$F16, IF(Actuals!$C16 = 'Project Parameters'!$B$8, 'Project Parameters'!H$8 * 'Project Parameters'!H$13 * Actuals!$F16, IF(Actuals!$C16 = 'Project Parameters'!$B$9, 'Project Parameters'!H$9 * 'Project Parameters'!H$13 * Actuals!$F16, IF(Actuals!$C16 = 'Project Parameters'!$B$10, 'Project Parameters'!H$10 * 'Project Parameters'!H$13 * Actuals!$F16, IF(Actuals!$C16 = 'Project Parameters'!$B$11, 'Project Parameters'!H$11 * 'Project Parameters'!H$13 * Actuals!$F16,error)))))) -> € 1,250.00 | I15: =MONTH(Actuals!E16) -> 7 | J15: € 43,750.00
B16: Contoso Pharmaceuticals | C16: =IF( Actuals!$C17 = 'Project Parameters'!$B$6, 'Project Parameters'!C$6 * 'Project Parameters'!C$13 * Actuals!$F17, IF(Actuals!$C17 = 'Project Parameters'!$B$7, 'Project Parameters'!C$7 * 'Project Parameters'!C$13 * Actuals!$F17, IF(Actuals!$C17 = 'Project Parameters'!$B$8, 'Project Parameters'!C$8 * 'Project Parameters'!C$13 * Actuals!$F17, IF(Actuals!$C17 = 'Project Parameters'!$B$9, 'Project Parameters'!C$9 * 'Project Parameters'!C$13 * Actuals!$F17, IF(Actuals!$C17 = 'Project Parameters'!$B$10, 'Project Parameters'!C$10 * 'Project Parameters'!C$13 * Actuals!$F17, IF(Actuals!$C17 = 'Project Parameters'!$B$11, 'Project Parameters'!C$11 * 'Project Parameters'!C$13 * Actuals!$F17,error)))))) -> € 5,000.00 | D16: =IF( Actuals!$C17 = 'Project Parameters'!$B$6, 'Project Parameters'!D$6 * 'Project Parameters'!D$13 * Actuals!$F17, IF(Actuals!$C17 = 'Project Parameters'!$B$7, 'Project Parameters'!D$7 * 'Project Parameters'!D$13 * Actuals!$F17, IF(Actuals!$C17 = 'Project Parameters'!$B$8, 'Project Parameters'!D$8 * 'Project Parameters'!D$13 * Actuals!$F17, IF(Actuals!$C17 = 'Project Parameters'!$B$9, 'Project Parameters'!D$9 * 'Project Parameters'!D$13 * Actuals!$F17, IF(Actuals!$C17 = 'Project Parameters'!$B$10, 'Project Parameters'!D$10 * 'Project Parameters'!D$13 * Actuals!$F17, IF(Actuals!$C17 = 'Project Parameters'!$B$11, 'Project Parameters'!D$11 * 'Project Parameters'!D$13 * Actuals!$F17,error)))))) -> € 4,500.00 | E16: =IF( Actuals!$C17 = 'Project Parameters'!$B$6, 'Project Parameters'!E$6 * 'Project Parameters'!E$13 * Actuals!$F17, IF(Actuals!$C17 = 'Project Parameters'!$B$7, 'Project Parameters'!E$7 * 'Project Parameters'!E$13 * Actuals!$F17, IF(Actuals!$C17 = 'Project Parameters'!$B$8, 'Project Parameters'!E$8 * 'Project Parameters'!E$13 * Actuals!$F17, IF(Actuals!$C17 = 'Project Parameters'!$B$9, 'Project Parameters'!E$9 * 'Project Parameters'!E$13 * Actuals!$F17, IF(Actuals!$C17 = 'Project Parameters'!$B$10, 'Project Parameters'!E$10 * 'Project Parameters'!E$13 * Actuals!$F17, IF(Actuals!$C17 = 'Project Parameters'!$B$11, 'Project Parameters'!E$11 * 'Project Parameters'!E$13 * Actuals!$F17,error)))))) -> € 4,000.00 | F16: =IF( Actuals!$C17 = 'Project Parameters'!$B$6, 'Project Parameters'!F$6 * 'Project Parameters'!F$13 * Actuals!$F17, IF(Actuals!$C17 = 'Project Parameters'!$B$7, 'Project Parameters'!F$7 * 'Project Parameters'!F$13 * Actuals!$F17, IF(Actuals!$C17 = 'Project Parameters'!$B$8, 'Project Parameters'!F$8 * 'Project Parameters'!F$13 * Actuals!$F17, IF(Actuals!$C17 = 'Project Parameters'!$B$9, 'Project Parameters'!F$9 * 'Project Parameters'!F$13 * Actuals!$F17, IF(Actuals!$C17 = 'Project Parameters'!$B$10, 'Project Parameters'!F$10 * 'Project Parameters'!F$13 * Actuals!$F17, IF(Actuals!$C17 = 'Project Parameters'!$B$11, 'Project Parameters'!F$11 * 'Project Parameters'!F$13 * Actuals!$F17,error)))))) -> € 17,500.00 | G16: =IF( Actuals!$C17 = 'Project Parameters'!$B$6, 'Project Parameters'!G$6 * 'Project Parameters'!G$13 * Actuals!$F17, IF(Actuals!$C17 = 'Project Parameters'!$B$7, 'Project Parameters'!G$7 * 'Project Parameters'!G$13 * Actuals!$F17, IF(Actuals!$C17 = 'Project Parameters'!$B$8, 'Project Parameters'!G$8 * 'Project Parameters'!G$13 * Actuals!$F17, IF(Actuals!$C17 = 'Project Parameters'!$B$9, 'Project Parameters'!G$9 * 'Project Parameters'!G$13 * Actuals!$F17, IF(Actuals!$C17 = 'Project Parameters'!$B$10, 'Project Parameters'!G$10 * 'Project Parameters'!G$13 * Actuals!$F17, IF(Actuals!$C17 = 'Project Parameters'!$B$11, 'Project Parameters'!G$11 * 'Project Parameters'!G$13 * Actuals!$F17,error)))))) -> € 3,000.00 | H16: =IF( Actuals!$C17 = 'Project Parameters'!$B$6, 'Project Parameters'!H$6 * 'Project Parameters'!H$13 * Actuals!$F17, IF(Actuals!$C17 = 'Project Parameters'!$B$7, 'Project Parameters'!H$7 * 'Project Parameters'!H$13 * Actuals!$F17, IF(Actuals!$C17 = 'Project Parameters'!$B$8, 'Project Parameters'!H$8 * 'Project Parameters'!H$13 * Actuals!$F17, IF(Actuals!$C17 = 'Project Parameters'!$B$9, 'Project Parameters'!H$9 * 'Project Parameters'!H$13 * Actuals!$F17, IF(Actuals!$C17 = 'Project Parameters'!$B$10, 'Project Parameters'!H$10 * 'Project Parameters'!H$13 * Actuals!$F17, IF(Actuals!$C17 = 'Project Parameters'!$B$11, 'Project Parameters'!H$11 * 'Project Parameters'!H$13 * Actuals!$F17,error)))))) -> € 1,000.00 | I16: =MONTH(Actuals!E17) -> 8 | J16: € 35,000.00
B17: Consolidated Messenger | C17: =IF( Actuals!$C18 = 'Project Parameters'!$B$6, 'Project Parameters'!C$6 * 'Project Parameters'!C$13 * Actuals!$F18, IF(Actuals!$C18 = 'Project Parameters'!$B$7, 'Project Parameters'!C$7 * 'Project Parameters'!C$13 * Actuals!$F18, IF(Actuals!$C18 = 'Project Parameters'!$B$8, 'Project Parameters'!C$8 * 'Project Parameters'!C$13 * Actuals!$F18, IF(Actuals!$C18 = 'Project Parameters'!$B$9, 'Project Parameters'!C$9 * 'Project Parameters'!C$13 * Actuals!$F18, IF(Actuals!$C18 = 'Project Parameters'!$B$10, 'Project Parameters'!C$10 * 'Project Parameters'!C$13 * Actuals!$F18, IF(Actuals!$C18 = 'Project Parameters'!$B$11, 'Project Parameters'!C$11 * 'Project Parameters'!C$13 * Actuals!$F18,error)))))) -> € 4,500.00 | D17: =IF( Actuals!$C18 = 'Project Parameters'!$B$6, 'Project Parameters'!D$6 * 'Project Parameters'!D$13 * Actuals!$F18, IF(Actuals!$C18 = 'Project Parameters'!$B$7, 'Project Parameters'!D$7 * 'Project Parameters'!D$13 * Actuals!$F18, IF(Actuals!$C18 = 'Project Parameters'!$B$8, 'Project Parameters'!D$8 * 'Project Parameters'!D$13 * Actuals!$F18, IF(Actuals!$C18 = 'Project Parameters'!$B$9, 'Project Parameters'!D$9 * 'Project Parameters'!D$13 * Actuals!$F18, IF(Actuals!$C18 = 'Project Parameters'!$B$10, 'Project Parameters'!D$10 * 'Project Parameters'!D$13 * Actuals!$F18, IF(Actuals!$C18 = 'Project Parameters'!$B$11, 'Project Parameters'!D$11 * 'Project Parameters'!D$13 * Actuals!$F18,error)))))) -> € 8,100.00 | E17: =IF( Actuals!$C18 = 'Project Parameters'!$B$6, 'Project Parameters'!E$6 * 'Project Parameters'!E$13 * Actuals!$F18, IF(Actuals!$C18 = 'Project Parameters'!$B$7, 'Project Parameters'!E$7 * 'Project Parameters'!E$13 * Actuals!$F18, IF(Actuals!$C18 = 'Project Parameters'!$B$8, 'Project Parameters'!E$8 * 'Project Parameters'!E$13 * Actuals!$F18, IF(Actuals!$C18 = 'Project Parameters'!$B$9, 'Project Parameters'!E$9 * 'Project Parameters'!E$13 * Actuals!$F18, IF(Actuals!$C18 = 'Project Parameters'!$B$10, 'Project Parameters'!E$10 * 'Project Parameters'!E$13 * Actuals!$F18, IF(Actuals!$C18 = 'Project Parameters'!$B$11, 'Project Parameters'!E$11 * 'Project Parameters'!E$13 * Actuals!$F18,error)))))) -> € 3,600.00 | F17: =IF( Actuals!$C18 = 'Project Parameters'!$B$6, 'Project Parameters'!F$6 * 'Project Parameters'!F$13 * Actuals!$F18, IF(Actuals!$C18 = 'Project Parameters'!$B$7, 'Project Parameters'!F$7 * 'Project Parameters'!F$13 * Actuals!$F18, IF(Actuals!$C18 = 'Project Parameters'!$B$8, 'Project Parameters'!F$8 * 'Project Parameters'!F$13 * Actuals!$F18, IF(Actuals!$C18 = 'Project Parameters'!$B$9, 'Project Parameters'!F$9 * 'Project Parameters'!F$13 * Actuals!$F18, IF(Actuals!$C18 = 'Project Parameters'!$B$10, 'Project Parameters'!F$10 * 'Project Parameters'!F$13 * Actuals!$F18, IF(Actuals!$C18 = 'Project Parameters'!$B$11, 'Project Parameters'!F$11 * 'Project Parameters'!F$13 * Actuals!$F18,error)))))) -> € 12,600.00 | G17: =IF( Actuals!$C18 = 'Project Parameters'!$B$6, 'Project Parameters'!G$6 * 'Project Parameters'!G$13 * Actuals!$F18, IF(Actuals!$C18 = 'Project Parameters'!$B$7, 'Project Parameters'!G$7 * 'Project Parameters'!G$13 * Actuals!$F18, IF(Actuals!$C18 = 'Project Parameters'!$B$8, 'Project Parameters'!G$8 * 'Project Parameters'!G$13 * Actuals!$F18, IF(Actuals!$C18 = 'Project Parameters'!$B$9, 'Project Parameters'!G$9 * 'Project Parameters'!G$13 * Actuals!$F18, IF(Actuals!$C18 = 'Project Parameters'!$B$10, 'Project Parameters'!G$10 * 'Project Parameters'!G$13 * Actuals!$F18, IF(Actuals!$C18 = 'Project Parameters'!$B$11, 'Project Parameters'!G$11 * 'Project Parameters'!G$13 * Actuals!$F18,error)))))) -> € 2,700.00 | H17: =IF( Actuals!$C18 = 'Project Parameters'!$B$6, 'Project Parameters'!H$6 * 'Project Parameters'!H$13 * Actuals!$F18, IF(Actuals!$C18 = 'Project Parameters'!$B$7, 'Project Parameters'!H$7 * 'Project Parameters'!H$13 * Actuals!$F18, IF(Actuals!$C18 = 'Project Parameters'!$B$8, 'Project Parameters'!H$8 * 'Project Parameters'!H$13 * Actuals!$F18, IF(Actuals!$C18 = 'Project Parameters'!$B$9, 'Project Parameters'!H$9 * 'Project Parameters'!H$13 * Actuals!$F18, IF(Actuals!$C18 = 'Project Parameters'!$B$10, 'Project Parameters'!H$10 * 'Project Parameters'!H$13 * Actuals!$F18, IF(Actuals!$C18 = 'Project Parameters'!$B$11, 'Project Parameters'!H$11 * 'Project Parameters'!H$13 * Actuals!$F18,error)))))) -> € 900.00 | I17: =MONTH(Actuals!E18) -> 8 | J17: € 32,400.00
B18: Fabrikam, Inc. | C18: =IF( Actuals!$C19 = 'Project Parameters'!$B$6, 'Project Parameters'!C$6 * 'Project Parameters'!C$13 * Actuals!$F19, IF(Actuals!$C19 = 'Project Parameters'!$B$7, 'Project Parameters'!C$7 * 'Project Parameters'!C$13 * Actuals!$F19, IF(Actuals!$C19 = 'Project Parameters'!$B$8, 'Project Parameters'!C$8 * 'Project Parameters'!C$13 * Actuals!$F19, IF(Actuals!$C19 = 'Project Parameters'!$B$9, 'Project Parameters'!C$9 * 'Project Parameters'!C$13 * Actuals!$F19, IF(Actuals!$C19 = 'Project Parameters'!$B$10, 'Project Parameters'!C$10 * 'Project Parameters'!C$13 * Actuals!$F19, IF(Actuals!$C19 = 'Project Parameters'!$B$11, 'Project Parameters'!C$11 * 'Project Parameters'!C$13 * Actuals!$F19,error)))))) -> € 6,250.00 | D18: =IF( Actuals!$C19 = 'Project Parameters'!$B$6, 'Project Parameters'!D$6 * 'Project Parameters'!D$13 * Actuals!$F19, IF(Actuals!$C19 = 'Project Parameters'!$B$7, 'Project Parameters'!D$7 * 'Project Parameters'!D$13 * Actuals!$F19, IF(Actuals!$C19 = 'Project Parameters'!$B$8, 'Project Parameters'!D$8 * 'Project Parameters'!D$13 * Actuals!$F19, IF(Actuals!$C19 = 'Project Parameters'!$B$9, 'Project Parameters'!D$9 * 'Project Parameters'!D$13 * Actuals!$F19, IF(Actuals!$C19 = 'Project Parameters'!$B$10, 'Project Parameters'!D$10 * 'Project Parameters'!D$13 * Actuals!$F19, IF(Actuals!$C19 = 'Project Parameters'!$B$11, 'Project Parameters'!D$11 * 'Project Parameters'!D$13 * Actuals!$F19,error)))))) -> € 11,250.00 | E18: =IF( Actuals!$C19 = 'Project Parameters'!$B$6, 'Project Parameters'!E$6 * 'Project Parameters'!E$13 * Actuals!$F19, IF(Actuals!$C19 = 'Project Parameters'!$B$7, 'Project Parameters'!E$7 * 'Project Parameters'!E$13 * Actuals!$F19, IF(Actuals!$C19 = 'Project Parameters'!$B$8, 'Project Parameters'!E$8 * 'Project Parameters'!E$13 * Actuals!$F19, IF(Actuals!$C19 = 'Project Parameters'!$B$9, 'Project Parameters'!E$9 * 'Project Parameters'!E$13 * Actuals!$F19, IF(Actuals!$C19 = 'Project Parameters'!$B$10, 'Project Parameters'!E$10 * 'Project Parameters'!E$13 * Actuals!$F19, IF(Actuals!$C19 = 'Project Parameters'!$B$11, 'Project Parameters'!E$11 * 'Project Parameters'!E$13 * Actuals!$F19,error)))))) -> € 5,000.00 | F18: =IF( Actuals!$C19 = 'Project Parameters'!$B$6, 'Project Parameters'!F$6 * 'Project Parameters'!F$13 * Actuals!$F19, IF(Actuals!$C19 = 'Project Parameters'!$B$7, 'Project Parameters'!F$7 * 'Project Parameters'!F$13 * Actuals!$F19, IF(Actuals!$C19 = 'Project Parameters'!$B$8, 'Project Parameters'!F$8 * 'Project Parameters'!F$13 * Actuals!$F19, IF(Actuals!$C19 = 'Project Parameters'!$B$9, 'Project Parameters'!F$9 * 'Project Parameters'!F$13 * Actuals!$F19, IF(Actuals!$C19 = 'Project Parameters'!$B$10, 'Project Parameters'!F$10 * 'Project Parameters'!F$13 * Actuals!$F19, IF(Actuals!$C19 = 'Project Parameters'!$B$11, 'Project Parameters'!F$11 * 'Project Parameters'!F$13 * Actuals!$F19,error)))))) -> € 8,750.00 | G18: =IF( Actuals!$C19 = 'Project Parameters'!$B$6, 'Project Parameters'!G$6 * 'Project Parameters'!G$13 * Actuals!$F19, IF(Actuals!$C19 = 'Project Parameters'!$B$7, 'Project Parameters'!G$7 * 'Project Parameters'!G$13 * Actuals!$F19, IF(Actuals!$C19 = 'Project Parameters'!$B$8, 'Project Parameters'!G$8 * 'Project Parameters'!G$13 * Actuals!$F19, IF(Actuals!$C19 = 'Project Parameters'!$B$9, 'Project Parameters'!G$9 * 'Project Parameters'!G$13 * Actuals!$F19, IF(Actuals!$C19 = 'Project Parameters'!$B$10, 'Project Parameters'!G$10 * 'Project Parameters'!G$13 * Actuals!$F19, IF(Actuals!$C19 = 'Project Parameters'!$B$11, 'Project Parameters'!G$11 * 'Project Parameters'!G$13 * Actuals!$F19,error)))))) -> € 11,250.00 | H18: =IF( Actuals!$C19 = 'Project Parameters'!$B$6, 'Project Parameters'!H$6 * 'Project Parameters'!H$13 * Actuals!$F19, IF(Actuals!$C19 = 'Project Parameters'!$B$7, 'Project Parameters'!H$7 * 'Project Parameters'!H$13 * Actuals!$F19, IF(Actuals!$C19 = 'Project Parameters'!$B$8, 'Project Parameters'!H$8 * 'Project Parameters'!H$13 * Actuals!$F19, IF(Actuals!$C19 = 'Project Parameters'!$B$9, 'Project Parameters'!H$9 * 'Project Parameters'!H$13 * Actuals!$F19, IF(Actuals!$C19 = 'Project Parameters'!$B$10, 'Project Parameters'!H$10 * 'Project Parameters'!H$13 * Actuals!$F19, IF(Actuals!$C19 = 'Project Parameters'!$B$11, 'Project Parameters'!H$11 * 'Project Parameters'!H$13 * Actuals!$F19,error)))))) -> € 1,250.00 | I18: =MONTH(Actuals!E19) -> 8 | J18: € 43,750.00
B19: Fourth Coffee | C19: =IF( Actuals!$C20 = 'Project Parameters'!$B$6, 'Project Parameters'!C$6 * 'Project Parameters'!C$13 * Actuals!$F20, IF(Actuals!$C20 = 'Project Parameters'!$B$7, 'Project Parameters'!C$7 * 'Project Parameters'!C$13 * Actuals!$F20, IF(Actuals!$C20 = 'Project Parameters'!$B$8, 'Project Parameters'!C$8 * 'Project Parameters'!C$13 * Actuals!$F20, IF(Actuals!$C20 = 'Project Parameters'!$B$9, 'Project Parameters'!C$9 * 'Project Parameters'!C$13 * Actuals!$F20, IF(Actuals!$C20 = 'Project Parameters'!$B$10, 'Project Parameters'!C$10 * 'Project Parameters'!C$13 * Actuals!$F20, IF(Actuals!$C20 = 'Project Parameters'!$B$11, 'Project Parameters'!C$11 * 'Project Parameters'!C$13 * Actuals!$F20,error)))))) -> € 6,000.00 | D19: =IF( Actuals!$C20 = 'Project Parameters'!$B$6, 'Project Parameters'!D$6 * 'Project Parameters'!D$13 * Actuals!$F20, IF(Actuals!$C20 = 'Project Parameters'!$B$7, 'Project Parameters'!D$7 * 'Project Parameters'!D$13 * Actuals!$F20, IF(Actuals!$C20 = 'Project Parameters'!$B$8, 'Project Parameters'!D$8 * 'Project Parameters'!D$13 * Actuals!$F20, IF(Actuals!$C20 = 'Project Parameters'!$B$9, 'Project Parameters'!D$9 * 'Project Parameters'!D$13 * Actuals!$F20, IF(Actuals!$C20 = 'Project Parameters'!$B$10, 'Project Parameters'!D$10 * 'Project Parameters'!D$13 * Actuals!$F20, IF(Actuals!$C20 = 'Project Parameters'!$B$11, 'Project Parameters'!D$11 * 'Project Parameters'!D$13 * Actuals!$F20,error)))))) -> € 10,800.00 | E19: =IF( Actuals!$C20 = 'Project Parameters'!$B$6, 'Project Parameters'!E$6 * 'Project Parameters'!E$13 * Actuals!$F20, IF(Actuals!$C20 = 'Project Parameters'!$B$7, 'Project Parameters'!E$7 * 'Project Parameters'!E$13 * Actuals!$F20, IF(Actuals!$C20 = 'Project Parameters'!$B$8, 'Project Parameters'!E$8 * 'Project Parameters'!E$13 * Actuals!$F20, IF(Actuals!$C20 = 'Project Parameters'!$B$9, 'Project Parameters'!E$9 * 'Project Parameters'!E$13 * Actuals!$F20, IF(Actuals!$C20 = 'Project Parameters'!$B$10, 'Project Parameters'!E$10 * 'Project Parameters'!E$13 * Actuals!$F20, IF(Actuals!$C20 = 'Project Parameters'!$B$11, 'Project Parameters'!E$11 * 'Project Parameters'!E$13 * Actuals!$F20,error)))))) -> € 9,600.00 | F19: =IF( Actuals!$C20 = 'Project Parameters'!$B$6, 'Project Parameters'!F$6 * 'Project Parameters'!F$13 * Actuals!$F20, IF(Actuals!$C20 = 'Project Parameters'!$B$7, 'Project Parameters'!F$7 * 'Project Parameters'!F$13 * Actuals!$F20, IF(Actuals!$C20 = 'Project Parameters'!$B$8, 'Project Parameters'!F$8 * 'Project Parameters'!F$13 * Actuals!$F20, IF(Actuals!$C20 = 'Project Parameters'!$B$9, 'Project Parameters'!F$9 * 'Project Parameters'!F$13 * Actuals!$F20, IF(Actuals!$C20 = 'Project Parameters'!$B$10, 'Project Parameters'!F$10 * 'Project Parameters'!F$13 * Actuals!$F20, IF(Actuals!$C20 = 'Project Parameters'!$B$11, 'Project Parameters'!F$11 * 'Project Parameters'!F$13 * Actuals!$F20,error)))))) -> € 8,400.00 | G19: =IF( Actuals!$C20 = 'Project Parameters'!$B$6, 'Project Parameters'!G$6 * 'Project Parameters'!G$13 * Actuals!$F20, IF(Actuals!$C20 = 'Project Parameters'!$B$7, 'Project Parameters'!G$7 * 'Project Parameters'!G$13 * Actuals!$F20, IF(Actuals!$C20 = 'Project Parameters'!$B$8, 'Project Parameters'!G$8 * 'Project Parameters'!G$13 * Actuals!$F20, IF(Actuals!$C20 = 'Project Parameters'!$B$9, 'Project Parameters'!G$9 * 'Project Parameters'!G$13 * Actuals!$F20, IF(Actuals!$C20 = 'Project Parameters'!$B$10, 'Project Parameters'!G$10 * 'Project Parameters'!G$13 * Actuals!$F20, IF(Actuals!$C20 = 'Project Parameters'!$B$11, 'Project Parameters'!G$11 * 'Project Parameters'!G$13 * Actuals!$F20,error)))))) -> € 7,200.00 | H19: =IF( Actuals!$C20 = 'Project Parameters'!$B$6, 'Project Parameters'!H$6 * 'Project Parameters'!H$13 * Actuals!$F20, IF(Actuals!$C20 = 'Project Parameters'!$B$7, 'Project Parameters'!H$7 * 'Project Parameters'!H$13 * Actuals!$F20, IF(Actuals!$C20 = 'Project Parameters'!$B$8, 'Project Parameters'!H$8 * 'Project Parameters'!H$13 * Actuals!$F20, IF(Actuals!$C20 = 'Project Parameters'!$B$9, 'Project Parameters'!H$9 * 'Project Parameters'!H$13 * Actuals!$F20, IF(Actuals!$C20 = 'Project Parameters'!$B$10, 'Project Parameters'!H$10 * 'Project Parameters'!H$13 * Actuals!$F20, IF(Actuals!$C20 = 'Project Parameters'!$B$11, 'Project Parameters'!H$11 * 'Project Parameters'!H$13 * Actuals!$F20,error)))))) -> € 1,200.00 | I19: =MONTH(Actuals!E20) -> 9 | J19: € 43,200.00
B20: Graphic Design Institute | C20: =IF( Actuals!$C21 = 'Project Parameters'!$B$6, 'Project Parameters'!C$6 * 'Project Parameters'!C$13 * Actuals!$F21, IF(Actuals!$C21 = 'Project Parameters'!$B$7, 'Project Parameters'!C$7 * 'Project Parameters'!C$13 * Actuals!$F21, IF(Actuals!$C21 = 'Project Parameters'!$B$8, 'Project Parameters'!C$8 * 'Project Parameters'!C$13 * Actuals!$F21, IF(Actuals!$C21 = 'Project Parameters'!$B$9, 'Project Parameters'!C$9 * 'Project Parameters'!C$13 * Actuals!$F21, IF(Actuals!$C21 = 'Project Parameters'!$B$10, 'Project Parameters'!C$10 * 'Project Parameters'!C$13 * Actuals!$F21, IF(Actuals!$C21 = 'Project Parameters'!$B$11, 'Project Parameters'!C$11 * 'Project Parameters'!C$13 * Actuals!$F21,error)))))) -> € 8,000.00 | D20: =IF( Actuals!$C21 = 'Project Parameters'!$B$6, 'Project Parameters'!D$6 * 'Project Parameters'!D$13 * Actuals!$F21, IF(Actuals!$C21 = 'Project Parameters'!$B$7, 'Project Parameters'!D$7 * 'Project Parameters'!D$13 * Actuals!$F21, IF(Actuals!$C21 = 'Project Parameters'!$B$8, 'Project Parameters'!D$8 * 'Project Parameters'!D$13 * Actuals!$F21, IF(Actuals!$C21 = 'Project Parameters'!$B$9, 'Project Parameters'!D$9 * 'Project Parameters'!D$13 * Actuals!$F21, IF(Actuals!$C21 = 'Project Parameters'!$B$10, 'Project Parameters'!D$10 * 'Project Parameters'!D$13 * Actuals!$F21, IF(Actuals!$C21 = 'Project Parameters'!$B$11, 'Project Parameters'!D$11 * 'Project Parameters'!D$13 * Actuals!$F21,error)))))) -> € 14,400.00 | E20: =IF( Actuals!$C21 = 'Project Parameters'!$B$6, 'Project Parameters'!E$6 * 'Project Parameters'!E$13 * Actuals!$F21, IF(Actuals!$C21 = 'Project Parameters'!$B$7, 'Project Parameters'!E$7 * 'Project Parameters'!E$13 * Actuals!$F21, IF(Actuals!$C21 = 'Project Parameters'!$B$8, 'Project Parameters'!E$8 * 'Project Parameters'!E$13 * Actuals!$F21, IF(Actuals!$C21 = 'Project Parameters'!$B$9, 'Project Parameters'!E$9 * 'Project Parameters'!E$13 * Actuals!$F21, IF(Actuals!$C21 = 'Project Parameters'!$B$10, 'Project Parameters'!E$10 * 'Project Parameters'!E$13 * Actuals!$F21, IF(Actuals!$C21 = 'Project Parameters'!$B$11, 'Project Parameters'!E$11 * 'Project Parameters'!E$13 * Actuals!$F21,error)))))) -> € 12,800.00 | F20: =IF( Actuals!$C21 = 'Project Parameters'!$B$6, 'Project Parameters'!F$6 * 'Project Parameters'!F$13 * Actuals!$F21, IF(Actuals!$C21 = 'Project Parameters'!$B$7, 'Project Parameters'!F$7 * 'Project Parameters'!F$13 * Actuals!$F21, IF(Actuals!$C21 = 'Project Parameters'!$B$8, 'Project Parameters'!F$8 * 'Project Parameters'!F$13 * Actuals!$F21, IF(Actuals!$C21 = 'Project Parameters'!$B$9, 'Project Parameters'!F$9 * 'Project Parameters'!F$13 * Actuals!$F21, IF(Actuals!$C21 = 'Project Parameters'!$B$10, 'Project Parameters'!F$10 * 'Project Parameters'!F$13 * Actuals!$F21, IF(Actuals!$C21 = 'Project Parameters'!$B$11, 'Project Parameters'!F$11 * 'Project Parameters'!F$13 * Actuals!$F21,error)))))) -> € 11,200.00 | G20: =IF( Actuals!$C21 = 'Project Parameters'!$B$6, 'Project Parameters'!G$6 * 'Project Parameters'!G$13 * Actuals!$F21, IF(Actuals!$C21 = 'Project Parameters'!$B$7, 'Project Parameters'!G$7 * 'Project Parameters'!G$13 * Actuals!$F21, IF(Actuals!$C21 = 'Project Parameters'!$B$8, 'Project Parameters'!G$8 * 'Project Parameters'!G$13 * Actuals!$F21, IF(Actuals!$C21 = 'Project Parameters'!$B$9, 'Project Parameters'!G$9 * 'Project Parameters'!G$13 * Actuals!$F21, IF(Actuals!$C21 = 'Project Parameters'!$B$10, 'Project Parameters'!G$10 * 'Project Parameters'!G$13 * Actuals!$F21, IF(Actuals!$C21 = 'Project Parameters'!$B$11, 'Project Parameters'!G$11 * 'Project Parameters'!G$13 * Actuals!$F21,error)))))) -> € 9,600.00 | H20: =IF( Actuals!$C21 = 'Project Parameters'!$B$6, 'Project Parameters'!H$6 * 'Project Parameters'!H$13 * Actuals!$F21, IF(Actuals!$C21 = 'Project Parameters'!$B$7, 'Project Parameters'!H$7 * 'Project Parameters'!H$13 * Actuals!$F21, IF(Actuals!$C21 = 'Project Parameters'!$B$8, 'Project Parameters'!H$8 * 'Project Parameters'!H$13 * Actuals!$F21, IF(Actuals!$C21 = 'Project Parameters'!$B$9, 'Project Parameters'!H$9 * 'Project Parameters'!H$13 * Actuals!$F21, IF(Actuals!$C21 = 'Project Parameters'!$B$10, 'Project Parameters'!H$10 * 'Project Parameters'!H$13 * Actuals!$F21, IF(Actuals!$C21 = 'Project Parameters'!$B$11, 'Project Parameters'!H$11 * 'Project Parameters'!H$13 * Actuals!$F21,error)))))) -> € 1,600.00 | I20: =MONTH(Actuals!E21) -> 9 | J20: € 57,600.00
B21: Humongous Insurance | C21: =IF( Actuals!$C22 = 'Project Parameters'!$B$6, 'Project Parameters'!C$6 * 'Project Parameters'!C$13 * Actuals!$F22, IF(Actuals!$C22 = 'Project Parameters'!$B$7, 'Project Parameters'!C$7 * 'Project Parameters'!C$13 * Actuals!$F22, IF(Actuals!$C22 = 'Project Parameters'!$B$8, 'Project Parameters'!C$8 * 'Project Parameters'!C$13 * Actuals!$F22, IF(Actuals!$C22 = 'Project Parameters'!$B$9, 'Project Parameters'!C$9 * 'Project Parameters'!C$13 * Actuals!$F22, IF(Actuals!$C22 = 'Project Parameters'!$B$10, 'Project Parameters'!C$10 * 'Project Parameters'!C$13 * Actuals!$F22, IF(Actuals!$C22 = 'Project Parameters'!$B$11, 'Project Parameters'!C$11 * 'Project Parameters'!C$13 * Actuals!$F22,error)))))) -> € 13,750.00 | D21: =IF( Actuals!$C22 = 'Project Parameters'!$B$6, 'Project Parameters'!D$6 * 'Project Parameters'!D$13 * Actuals!$F22, IF(Actuals!$C22 = 'Project Parameters'!$B$7, 'Project Parameters'!D$7 * 'Project Parameters'!D$13 * Actuals!$F22, IF(Actuals!$C22 = 'Project Parameters'!$B$8, 'Project Parameters'!D$8 * 'Project Parameters'!D$13 * Actuals!$F22, IF(Actuals!$C22 = 'Project Parameters'!$B$9, 'Project Parameters'!D$9 * 'Project Parameters'!D$13 * Actuals!$F22, IF(Actuals!$C22 = 'Project Parameters'!$B$10, 'Project Parameters'!D$10 * 'Project Parameters'!D$13 * Actuals!$F22, IF(Actuals!$C22 = 'Project Parameters'!$B$11, 'Project Parameters'!D$11 * 'Project Parameters'!D$13 * Actuals!$F22,error)))))) -> € 24,750.00 | E21: =IF( Actuals!$C22 = 'Project Parameters'!$B$6, 'Project Parameters'!E$6 * 'Project Parameters'!E$13 * Actuals!$F22, IF(Actuals!$C22 = 'Project Parameters'!$B$7, 'Project Parameters'!E$7 * 'Project Parameters'!E$13 * Actuals!$F22, IF(Actuals!$C22 = 'Project Parameters'!$B$8, 'Project Parameters'!E$8 * 'Project Parameters'!E$13 * Actuals!$F22, IF(Actuals!$C22 = 'Project Parameters'!$B$9, 'Project Parameters'!E$9 * 'Project Parameters'!E$13 * Actuals!$F22, IF(Actuals!$C22 = 'Project Parameters'!$B$10, 'Project Parameters'!E$10 * 'Project Parameters'!E$13 * Actuals!$F22, IF(Actuals!$C22 = 'Project Parameters'!$B$11, 'Project Parameters'!E$11 * 'Project Parameters'!E$13 * Actuals!$F22,error)))))) -> € 11,000.00 | F21: =IF( Actuals!$C22 = 'Project Parameters'!$B$6, 'Project Parameters'!F$6 * 'Project Parameters'!F$13 * Actuals!$F22, IF(Actuals!$C22 = 'Project Parameters'!$B$7, 'Project Parameters'!F$7 * 'Project Parameters'!F$13 * Actuals!$F22, IF(Actuals!$C22 = 'Project Parameters'!$B$8, 'Project Parameters'!F$8 * 'Project Parameters'!F$13 * Actuals!$F22, IF(Actuals!$C22 = 'Project Parameters'!$B$9, 'Project Parameters'!F$9 * 'Project Parameters'!F$13 * Actuals!$F22, IF(Actuals!$C22 = 'Project Parameters'!$B$10, 'Project Parameters'!F$10 * 'Project Parameters'!F$13 * Actuals!$F22, IF(Actuals!$C22 = 'Project Parameters'!$B$11, 'Project Parameters'!F$11 * 'Project Parameters'!F$13 * Actuals!$F22,error)))))) -> € 19,250.00 | G21: =IF( Actuals!$C22 = 'Project Parameters'!$B$6, 'Project Parameters'!G$6 * 'Project Parameters'!G$13 * Actuals!$F22, IF(Actuals!$C22 = 'Project Parameters'!$B$7, 'Project Parameters'!G$7 * 'Project Parameters'!G$13 * Actuals!$F22, IF(Actuals!$C22 = 'Project Parameters'!$B$8, 'Project Parameters'!G$8 * 'Project Parameters'!G$13 * Actuals!$F22, IF(Actuals!$C22 = 'Project Parameters'!$B$9, 'Project Parameters'!G$9 * 'Project Parameters'!G$13 * Actuals!$F22, IF(Actuals!$C22 = 'Project Parameters'!$B$10, 'Project Parameters'!G$10 * 'Project Parameters'!G$13 * Actuals!$F22, IF(Actuals!$C22 = 'Project Parameters'!$B$11, 'Project Parameters'!G$11 * 'Project Parameters'!G$13 * Actuals!$F22,error)))))) -> € 24,750.00 | H21: =IF( Actuals!$C22 = 'Project Parameters'!$B$6, 'Project Parameters'!H$6 * 'Project Parameters'!H$13 * Actuals!$F22, IF(Actuals!$C22 = 'Project Parameters'!$B$7, 'Project Parameters'!H$7 * 'Project Parameters'!H$13 * Actuals!$F22, IF(Actuals!$C22 = 'Project Parameters'!$B$8, 'Project Parameters'!H$8 * 'Project Parameters'!H$13 * Actuals!$F22, IF(Actuals!$C22 = 'Project Parameters'!$B$9, 'Project Parameters'!H$9 * 'Project Parameters'!H$13 * Actuals!$F22, IF(Actuals!$C22 = 'Project Parameters'!$B$10, 'Project Parameters'!H$10 * 'Project Parameters'!H$13 * Actuals!$F22, IF(Actuals!$C22 = 'Project Parameters'!$B$11, 'Project Parameters'!H$11 * 'Project Parameters'!H$13 * Actuals!$F22,error)))))) -> € 2,750.00 | I21: =MONTH(Actuals!E22) -> 10 | J21: € 96,250.00
B22: Litware, Inc. | C22: =IF( Actuals!$C23 = 'Project Parameters'!$B$6, 'Project Parameters'!C$6 * 'Project Parameters'!C$13 * Actuals!$F23, IF(Actuals!$C23 = 'Project Parameters'!$B$7, 'Project Parameters'!C$7 * 'Project Parameters'!C$13 * Actuals!$F23, IF(Actuals!$C23 = 'Project Parameters'!$B$8, 'Project Parameters'!C$8 * 'Project Parameters'!C$13 * Actuals!$F23, IF(Actuals!$C23 = 'Project Parameters'!$B$9, 'Project Parameters'!C$9 * 'Project Parameters'!C$13 * Actuals!$F23, IF(Actuals!$C23 = 'Project Parameters'!$B$10, 'Project Parameters'!C$10 * 'Project Parameters'!C$13 * Actuals!$F23, IF(Actuals!$C23 = 'Project Parameters'!$B$11, 'Project Parameters'!C$11 * 'Project Parameters'!C$13 * Actuals!$F23,error)))))) -> € 8,750.00 | D22: =IF( Actuals!$C23 = 'Project Parameters'!$B$6, 'Project Parameters'!D$6 * 'Project Parameters'!D$13 * Actuals!$F23, IF(Actuals!$C23 = 'Project Parameters'!$B$7, 'Project Parameters'!D$7 * 'Project Parameters'!D$13 * Actuals!$F23, IF(Actuals!$C23 = 'Project Parameters'!$B$8, 'Project Parameters'!D$8 * 'Project Parameters'!D$13 * Actuals!$F23, IF(Actuals!$C23 = 'Project Parameters'!$B$9, 'Project Parameters'!D$9 * 'Project Parameters'!D$13 * Actuals!$F23, IF(Actuals!$C23 = 'Project Parameters'!$B$10, 'Project Parameters'!D$10 * 'Project Parameters'!D$13 * Actuals!$F23, IF(Actuals!$C23 = 'Project Parameters'!$B$11, 'Project Parameters'!D$11 * 'Project Parameters'!D$13 * Actuals!$F23,error)))))) -> € 7,875.00 | E22: =IF( Actuals!$C23 = 'Project Parameters'!$B$6, 'Project Parameters'!E$6 * 'Project Parameters'!E$13 * Actuals!$F23, IF(Actuals!$C23 = 'Project Parameters'!$B$7, 'Project Parameters'!E$7 * 'Project Parameters'!E$13 * Actuals!$F23, IF(Actuals!$C23 = 'Project Parameters'!$B$8, 'Project Parameters'!E$8 * 'Project Parameters'!E$13 * Actuals!$F23, IF(Actuals!$C23 = 'Project Parameters'!$B$9, 'Project Parameters'!E$9 * 'Project Parameters'!E$13 * Actuals!$F23, IF(Actuals!$C23 = 'Project Parameters'!$B$10, 'Project Parameters'!E$10 * 'Project Parameters'!E$13 * Actuals!$F23, IF(Actuals!$C23 = 'Project Parameters'!$B$11, 'Project Parameters'!E$11 * 'Project Parameters'!E$13 * Actuals!$F23,error)))))) -> € 35,000.00 | F22: =IF( Actuals!$C23 = 'Project Parameters'!$B$6, 'Project Parameters'!F$6 * 'Project Parameters'!F$13 * Actuals!$F23, IF(Actuals!$C23 = 'Project Parameters'!$B$7, 'Project Parameters'!F$7 * 'Project Parameters'!F$13 * Actuals!$F23, IF(Actuals!$C23 = 'Project Parameters'!$B$8, 'Project Parameters'!F$8 * 'Project Parameters'!F$13 * Actuals!$F23, IF(Actuals!$C23 = 'Project Parameters'!$B$9, 'Project Parameters'!F$9 * 'Project Parameters'!F$13 * Actuals!$F23, IF(Actuals!$C23 = 'Project Parameters'!$B$10, 'Project Parameters'!F$10 * 'Project Parameters'!F$13 * Actuals!$F23, IF(Actuals!$C23 = 'Project Parameters'!$B$11, 'Project Parameters'!F$11 * 'Project Parameters'!F$13 * Actuals!$F23,error)))))) -> 0 | G22: =IF( Actuals!$C23 = 'Project Parameters'!$B$6, 'Project Parameters'!G$6 * 'Project Parameters'!G$13 * Actuals!$F23, IF(Actuals!$C23 = 'Project Parameters'!$B$7, 'Project Parameters'!G$7 * 'Project Parameters'!G$13 * Actuals!$F23, IF(Actuals!$C23 = 'Project Parameters'!$B$8, 'Project Parameters'!G$8 * 'Project Parameters'!G$13 * Actuals!$F23, IF(Actuals!$C23 = 'Project Parameters'!$B$9, 'Project Parameters'!G$9 * 'Project Parameters'!G$13 * Actuals!$F23, IF(Actuals!$C23 = 'Project Parameters'!$B$10, 'Project Parameters'!G$10 * 'Project Parameters'!G$13 * Actuals!$F23, IF(Actuals!$C23 = 'Project Parameters'!$B$11, 'Project Parameters'!G$11 * 'Project Parameters'!G$13 * Actuals!$F23,error)))))) -> € 10,500.00 | H22: =IF( Actuals!$C23 = 'Project Parameters'!$B$6, 'Project Parameters'!H$6 * 'Project Parameters'!H$13 * Actuals!$F23, IF(Actuals!$C23 = 'Project Parameters'!$B$7, 'Project Parameters'!H$7 * 'Project Parameters'!H$13 * Actuals!$F23, IF(Actuals!$C23 = 'Project Parameters'!$B$8, 'Project Parameters'!H$8 * 'Project Parameters'!H$13 * Actuals!$F23, IF(Actuals!$C23 = 'Project Parameters'!$B$9, 'Project Parameters'!H$9 * 'Project Parameters'!H$13 * Actuals!$F23, IF(Actuals!$C23 = 'Project Parameters'!$B$10, 'Project Parameters'!H$10 * 'Project Parameters'!H$13 * Actuals!$F23, IF(Actuals!$C23 = 'Project Parameters'!$B$11, 'Project Parameters'!H$11 * 'Project Parameters'!H$13 * Actuals!$F23,error)))))) -> € 1,750.00 | I22: =MONTH(Actuals!E23) -> 10 | J22: € 63,875.00
B23: Lucerne Publishing | C23: =IF( Actuals!$C24 = 'Project Parameters'!$B$6, 'Project Parameters'!C$6 * 'Project Parameters'!C$13 * Actuals!$F24, IF(Actuals!$C24 = 'Project Parameters'!$B$7, 'Project Parameters'!C$7 * 'Project Parameters'!C$13 * Actuals!$F24, IF(Actuals!$C24 = 'Project Parameters'!$B$8, 'Project Parameters'!C$8 * 'Project Parameters'!C$13 * Actuals!$F24, IF(Actuals!$C24 = 'Project Parameters'!$B$9, 'Project Parameters'!C$9 * 'Project Parameters'!C$13 * Actuals!$F24, IF(Actuals!$C24 = 'Project Parameters'!$B$10, 'Project Parameters'!C$10 * 'Project Parameters'!C$13 * Actuals!$F24, IF(Actuals!$C24 = 'Project Parameters'!$B$11, 'Project Parameters'!C$11 * 'Project Parameters'!C$13 * Actuals!$F24,error)))))) -> € 5,000.00 | D23: =IF( Actuals!$C24 = 'Project Parameters'!$B$6, 'Project Parameters'!D$6 * 'Project Parameters'!D$13 * Actuals!$F24, IF(Actuals!$C24 = 'Project Parameters'!$B$7, 'Project Parameters'!D$7 * 'Project Parameters'!D$13 * Actuals!$F24, IF(Actuals!$C24 = 'Project Parameters'!$B$8, 'Project Parameters'!D$8 * 'Project Parameters'!D$13 * Actuals!$F24, IF(Actuals!$C24 = 'Project Parameters'!$B$9, 'Project Parameters'!D$9 * 'Project Parameters'!D$13 * Actuals!$F24, IF(Actuals!$C24 = 'Project Parameters'!$B$10, 'Project Parameters'!D$10 * 'Project Parameters'!D$13 * Actuals!$F24, IF(Actuals!$C24 = 'Project Parameters'!$B$11, 'Project Parameters'!D$11 * 'Project Parameters'!D$13 * Actuals!$F24,error)))))) -> € 9,000.00 | E23: =IF( Actuals!$C24 = 'Project Parameters'!$B$6, 'Project Parameters'!E$6 * 'Project Parameters'!E$13 * Actuals!$F24, IF(Actuals!$C24 = 'Project Parameters'!$B$7, 'Project Parameters'!E$7 * 'Project Parameters'!E$13 * Actuals!$F24, IF(Actuals!$C24 = 'Project Parameters'!$B$8, 'Project Parameters'!E$8 * 'Project Parameters'!E$13 * Actuals!$F24, IF(Actuals!$C24 = 'Project Parameters'!$B$9, 'Project Parameters'!E$9 * 'Project Parameters'!E$13 * Actuals!$F24, IF(Actuals!$C24 = 'Project Parameters'!$B$10, 'Project Parameters'!E$10 * 'Project Parameters'!E$13 * Actuals!$F24, IF(Actuals!$C24 = 'Project Parameters'!$B$11, 'Project Parameters'!E$11 * 'Project Parameters'!E$13 * Actuals!$F24,error)))))) -> € 16,000.00 | F23: =IF( Actuals!$C24 = 'Project Parameters'!$B$6, 'Project Parameters'!F$6 * 'Project Parameters'!F$13 * Actuals!$F24, IF(Actuals!$C24 = 'Project Parameters'!$B$7, 'Project Parameters'!F$7 * 'Project Parameters'!F$13 * Actuals!$F24, IF(Actuals!$C24 = 'Project Parameters'!$B$8, 'Project Parameters'!F$8 * 'Project Parameters'!F$13 * Actuals!$F24, IF(Actuals!$C24 = 'Project Parameters'!$B$9, 'Project Parameters'!F$9 * 'Project Parameters'!F$13 * Actuals!$F24, IF(Actuals!$C24 = 'Project Parameters'!$B$10, 'Project Parameters'!F$10 * 'Project Parameters'!F$13 * Actuals!$F24, IF(Actuals!$C24 = 'Project Parameters'!$B$11, 'Project Parameters'!F$11 * 'Project Parameters'!F$13 * Actuals!$F24,error)))))) -> € 3,500.00 | G23: =IF( Actuals!$C24 = 'Project Parameters'!$B$6, 'Project Parameters'!G$6 * 'Project Parameters'!G$13 * Actuals!$F24, IF(Actuals!$C24 = 'Project Parameters'!$B$7, 'Project Parameters'!G$7 * 'Project Parameters'!G$13 * Actuals!$F24, IF(Actuals!$C24 = 'Project Parameters'!$B$8, 'Project Parameters'!G$8 * 'Project Parameters'!G$13 * Actuals!$F24, IF(Actuals!$C24 = 'Project Parameters'!$B$9, 'Project Parameters'!G$9 * 'Project Parameters'!G$13 * Actuals!$F24, IF(Actuals!$C24 = 'Project Parameters'!$B$10, 'Project Parameters'!G$10 * 'Project Parameters'!G$13 * Actuals!$F24, IF(Actuals!$C24 = 'Project Parameters'!$B$11, 'Project Parameters'!G$11 * 'Project Parameters'!G$13 * Actuals!$F24,error)))))) -> € 3,000.00 | H23: =IF( Actuals!$C24 = 'Project Parameters'!$B$6, 'Project Parameters'!H$6 * 'Project Parameters'!H$13 * Actuals!$F24, IF(Actuals!$C24 = 'Project Parameters'!$B$7, 'Project Parameters'!H$7 * 'Project Parameters'!H$13 * Actuals!$F24, IF(Actuals!$C24 = 'Project Parameters'!$B$8, 'Project Parameters'!H$8 * 'Project Parameters'!H$13 * Actuals!$F24, IF(Actuals!$C24 = 'Project Parameters'!$B$9, 'Project Parameters'!H$9 * 'Project Parameters'!H$13 * Actuals!$F24, IF(Actuals!$C24 = 'Project Parameters'!$B$10, 'Project Parameters'!H$10 * 'Project Parameters'!H$13 * Actuals!$F24, IF(Actuals!$C24 = 'Project Parameters'!$B$11, 'Project Parameters'!H$11 * 'Project Parameters'!H$13 * Actuals!$F24,error)))))) -> € 1,000.00 | I23: =MONTH(Actuals!E24) -> 11 | J23: € 37,500.00
B24: Margie's Travel | C24: =IF( Actuals!$C25 = 'Project Parameters'!$B$6, 'Project Parameters'!C$6 * 'Project Parameters'!C$13 * Actuals!$F25, IF(Actuals!$C25 = 'Project Parameters'!$B$7, 'Project Parameters'!C$7 * 'Project Parameters'!C$13 * Actuals!$F25, IF(Actuals!$C25 = 'Project Parameters'!$B$8, 'Project Parameters'!C$8 * 'Project Parameters'!C$13 * Actuals!$F25, IF(Actuals!$C25 = 'Project Parameters'!$B$9, 'Project Parameters'!C$9 * 'Project Parameters'!C$13 * Actuals!$F25, IF(Actuals!$C25 = 'Project Parameters'!$B$10, 'Project Parameters'!C$10 * 'Project Parameters'!C$13 * Actuals!$F25, IF(Actuals!$C25 = 'Project Parameters'!$B$11, 'Project Parameters'!C$11 * 'Project Parameters'!C$13 * Actuals!$F25,error)))))) -> € 5,500.00 | D24: =IF( Actuals!$C25 = 'Project Parameters'!$B$6, 'Project Parameters'!D$6 * 'Project Parameters'!D$13 * Actuals!$F25, IF(Actuals!$C25 = 'Project Parameters'!$B$7, 'Project Parameters'!D$7 * 'Project Parameters'!D$13 * Actuals!$F25, IF(Actuals!$C25 = 'Project Parameters'!$B$8, 'Project Parameters'!D$8 * 'Project Parameters'!D$13 * Actuals!$F25, IF(Actuals!$C25 = 'Project Parameters'!$B$9, 'Project Parameters'!D$9 * 'Project Parameters'!D$13 * Actuals!$F25, IF(Actuals!$C25 = 'Project Parameters'!$B$10, 'Project Parameters'!D$10 * 'Project Parameters'!D$13 * Actuals!$F25, IF(Actuals!$C25 = 'Project Parameters'!$B$11, 'Project Parameters'!D$11 * 'Project Parameters'!D$13 * Actuals!$F25,error)))))) -> € 9,900.00 | E24: =IF( Actuals!$C25 = 'Project Parameters'!$B$6, 'Project Parameters'!E$6 * 'Project Parameters'!E$13 * Actuals!$F25, IF(Actuals!$C25 = 'Project Parameters'!$B$7, 'Project Parameters'!E$7 * 'Project Parameters'!E$13 * Actuals!$F25, IF(Actuals!$C25 = 'Project Parameters'!$B$8, 'Project Parameters'!E$8 * 'Project Parameters'!E$13 * Actuals!$F25, IF(Actuals!$C25 = 'Project Parameters'!$B$9, 'Project Parameters'!E$9 * 'Project Parameters'!E$13 * Actuals!$F25, IF(Actuals!$C25 = 'Project Parameters'!$B$10, 'Project Parameters'!E$10 * 'Project Parameters'!E$13 * Actuals!$F25, IF(Actuals!$C25 = 'Project Parameters'!$B$11, 'Project Parameters'!E$11 * 'Project Parameters'!E$13 * Actuals!$F25,error)))))) -> € 4,400.00 | F24: =IF( Actuals!$C25 = 'Project Parameters'!$B$6, 'Project Parameters'!F$6 * 'Project Parameters'!F$13 * Actuals!$F25, IF(Actuals!$C25 = 'Project Parameters'!$B$7, 'Project Parameters'!F$7 * 'Project Parameters'!F$13 * Actuals!$F25, IF(Actuals!$C25 = 'Project Parameters'!$B$8, 'Project Parameters'!F$8 * 'Project Parameters'!F$13 * Actuals!$F25, IF(Actuals!$C25 = 'Project Parameters'!$B$9, 'Project Parameters'!F$9 * 'Project Parameters'!F$13 * Actuals!$F25, IF(Actuals!$C25 = 'Project Parameters'!$B$10, 'Project Parameters'!F$10 * 'Project Parameters'!F$13 * Actuals!$F25, IF(Actuals!$C25 = 'Project Parameters'!$B$11, 'Project Parameters'!F$11 * 'Project Parameters'!F$13 * Actuals!$F25,error)))))) -> € 7,700.00 | G24: =IF( Actuals!$C25 = 'Project Parameters'!$B$6, 'Project Parameters'!G$6 * 'Project Parameters'!G$13 * Actuals!$F25, IF(Actuals!$C25 = 'Project Parameters'!$B$7, 'Project Parameters'!G$7 * 'Project Parameters'!G$13 * Actuals!$F25, IF(Actuals!$C25 = 'Project Parameters'!$B$8, 'Project Parameters'!G$8 * 'Project Parameters'!G$13 * Actuals!$F25, IF(Actuals!$C25 = 'Project Parameters'!$B$9, 'Project Parameters'!G$9 * 'Project Parameters'!G$13 * Actuals!$F25, IF(Actuals!$C25 = 'Project Parameters'!$B$10, 'Project Parameters'!G$10 * 'Project Parameters'!G$13 * Actuals!$F25, IF(Actuals!$C25 = 'Project Parameters'!$B$11, 'Project Parameters'!G$11 * 'Project Parameters'!G$13 * Actuals!$F25,error)))))) -> € 9,900.00 | H24: =IF( Actuals!$C25 = 'Project Parameters'!$B$6, 'Project Parameters'!H$6 * 'Project Parameters'!H$13 * Actuals!$F25, IF(Actuals!$C25 = 'Project Parameters'!$B$7, 'Project Parameters'!H$7 * 'Project Parameters'!H$13 * Actuals!$F25, IF(Actuals!$C25 = 'Project Parameters'!$B$8, 'Project Parameters'!H$8 * 'Project Parameters'!H$13 * Actuals!$F25, IF(Actuals!$C25 = 'Project Parameters'!$B$9, 'Project Parameters'!H$9 * 'Project Parameters'!H$13 * Actuals!$F25, IF(Actuals!$C25 = 'Project Parameters'!$B$10, 'Project Parameters'!H$10 * 'Project Parameters'!H$13 * Actuals!$F25, IF(Actuals!$C25 = 'Project Parameters'!$B$11, 'Project Parameters'!H$11 * 'Project Parameters'!H$13 * Actuals!$F25,error)))))) -> € 1,100.00 | I24: =MONTH(Actuals!E25) -> 11 | J24: € 38,500.00
B25: Northwind Traders | C25: =IF( Actuals!$C26 = 'Project Parameters'!$B$6, 'Project Parameters'!C$6 * 'Project Parameters'!C$13 * Actuals!$F26, IF(Actuals!$C26 = 'Project Parameters'!$B$7, 'Project Parameters'!C$7 * 'Project Parameters'!C$13 * Actuals!$F26, IF(Actuals!$C26 = 'Project Parameters'!$B$8, 'Project Parameters'!C$8 * 'Project Parameters'!C$13 * Actuals!$F26, IF(Actuals!$C26 = 'Project Parameters'!$B$9, 'Project Parameters'!C$9 * 'Project Parameters'!C$13 * Actuals!$F26, IF(Actuals!$C26 = 'Project Parameters'!$B$10, 'Project Parameters'!C$10 * 'Project Parameters'!C$13 * Actuals!$F26, IF(Actuals!$C26 = 'Project Parameters'!$B$11, 'Project Parameters'!C$11 * 'Project Parameters'!C$13 * Actuals!$F26,error)))))) -> € 15,000.00 | D25: =IF( Actuals!$C26 = 'Project Parameters'!$B$6, 'Project Parameters'!D$6 * 'Project Parameters'!D$13 * Actuals!$F26, IF(Actuals!$C26 = 'Project Parameters'!$B$7, 'Project Parameters'!D$7 * 'Project Parameters'!D$13 * Actuals!$F26, IF(Actuals!$C26 = 'Project Parameters'!$B$8, 'Project Parameters'!D$8 * 'Project Parameters'!D$13 * Actuals!$F26, IF(Actuals!$C26 = 'Project Parameters'!$B$9, 'Project Parameters'!D$9 * 'Project Parameters'!D$13 * Actuals!$F26, IF(Actuals!$C26 = 'Project Parameters'!$B$10, 'Project Parameters'!D$10 * 'Project Parameters'!D$13 * Actuals!$F26, IF(Actuals!$C26 = 'Project Parameters'!$B$11, 'Project Parameters'!D$11 * 'Project Parameters'!D$13 * Actuals!$F26,error)))))) -> € 27,000.00 | E25: =IF( Actuals!$C26 = 'Project Parameters'!$B$6, 'Project Parameters'!E$6 * 'Project Parameters'!E$13 * Actuals!$F26, IF(Actuals!$C26 = 'Project Parameters'!$B$7, 'Project Parameters'!E$7 * 'Project Parameters'!E$13 * Actuals!$F26, IF(Actuals!$C26 = 'Project Parameters'!$B$8, 'Project Parameters'!E$8 * 'Project Parameters'!E$13 * Actuals!$F26, IF(Actuals!$C26 = 'Project Parameters'!$B$9, 'Project Parameters'!E$9 * 'Project Parameters'!E$13 * Actuals!$F26, IF(Actuals!$C26 = 'Project Parameters'!$B$10, 'Project Parameters'!E$10 * 'Project Parameters'!E$13 * Actuals!$F26, IF(Actuals!$C26 = 'Project Parameters'!$B$11, 'Project Parameters'!E$11 * 'Project Parameters'!E$13 * Actuals!$F26,error)))))) -> € 12,000.00 | F25: =IF( Actuals!$C26 = 'Project Parameters'!$B$6, 'Project Parameters'!F$6 * 'Project Parameters'!F$13 * Actuals!$F26, IF(Actuals!$C26 = 'Project Parameters'!$B$7, 'Project Parameters'!F$7 * 'Project Parameters'!F$13 * Actuals!$F26, IF(Actuals!$C26 = 'Project Parameters'!$B$8, 'Project Parameters'!F$8 * 'Project Parameters'!F$13 * Actuals!$F26, IF(Actuals!$C26 = 'Project Parameters'!$B$9, 'Project Parameters'!F$9 * 'Project Parameters'!F$13 * Actuals!$F26, IF(Actuals!$C26 = 'Project Parameters'!$B$10, 'Project Parameters'!F$10 * 'Project Parameters'!F$13 * Actuals!$F26, IF(Actuals!$C26 = 'Project Parameters'!$B$11, 'Project Parameters'!F$11 * 'Project Parameters'!F$13 * Actuals!$F26,error)))))) -> € 42,000.00 | G25: =IF( Actuals!$C26 = 'Project Parameters'!$B$6, 'Project Parameters'!G$6 * 'Project Parameters'!G$13 * Actuals!$F26, IF(Actuals!$C26 = 'Project Parameters'!$B$7, 'Project Parameters'!G$7 * 'Project Parameters'!G$13 * Actuals!$F26, IF(Actuals!$C26 = 'Project Parameters'!$B$8, 'Project Parameters'!G$8 * 'Project Parameters'!G$13 * Actuals!$F26, IF(Actuals!$C26 = 'Project Parameters'!$B$9, 'Project Parameters'!G$9 * 'Project Parameters'!G$13 * Actuals!$F26, IF(Actuals!$C26 = 'Project Parameters'!$B$10, 'Project Parameters'!G$10 * 'Project Parameters'!G$13 * Actuals!$F26, IF(Actuals!$C26 = 'Project Parameters'!$B$11, 'Project Parameters'!G$11 * 'Project Parameters'!G$13 * Actuals!$F26,error)))))) -> € 9,000.00 | H25: =IF( Actuals!$C26 = 'Project Parameters'!$B$6, 'Project Parameters'!H$6 * 'Project Parameters'!H$13 * Actuals!$F26, IF(Actuals!$C26 = 'Project Parameters'!$B$7, 'Project Parameters'!H$7 * 'Project Parameters'!H$13 * Actuals!$F26, IF(Actuals!$C26 = 'Project Parameters'!$B$8, 'Project Parameters'!H$8 * 'Project Parameters'!H$13 * Actuals!$F26, IF(Actuals!$C26 = 'Project Parameters'!$B$9, 'Project Parameters'!H$9 * 'Project Parameters'!H$13 * Actuals!$F26, IF(Actuals!$C26 = 'Project Parameters'!$B$10, 'Project Parameters'!H$10 * 'Project Parameters'!H$13 * Actuals!$F26, IF(Actuals!$C26 = 'Project Parameters'!$B$11, 'Project Parameters'!H$11 * 'Project Parameters'!H$13 * Actuals!$F26,error)))))) -> € 3,000.00 | I25: =MONTH(Actuals!E26) -> 12 | J25: € 108,000.00
B26: Proseware, Inc. | C26: =IF( Actuals!$C27 = 'Project Parameters'!$B$6, 'Project Parameters'!C$6 * 'Project Parameters'!C$13 * Actuals!$F27, IF(Actuals!$C27 = 'Project Parameters'!$B$7, 'Project Parameters'!C$7 * 'Project Parameters'!C$13 * Actuals!$F27, IF(Actuals!$C27 = 'Project Parameters'!$B$8, 'Project Parameters'!C$8 * 'Project Parameters'!C$13 * Actuals!$F27, IF(Actuals!$C27 = 'Project Parameters'!$B$9, 'Project Parameters'!C$9 * 'Project Parameters'!C$13 * Actuals!$F27, IF(Actuals!$C27 = 'Project Parameters'!$B$10, 'Project Parameters'!C$10 * 'Project Parameters'!C$13 * Actuals!$F27, IF(Actuals!$C27 = 'Project Parameters'!$B$11, 'Project Parameters'!C$11 * 'Project Parameters'!C$13 * Actuals!$F27,error)))))) -> € 13,125.00 | D26: =IF( Actuals!$C27 = 'Project Parameters'!$B$6, 'Project Parameters'!D$6 * 'Project Parameters'!D$13 * Actuals!$F27, IF(Actuals!$C27 = 'Project Parameters'!$B$7, 'Project Parameters'!D$7 * 'Project Parameters'!D$13 * Actuals!$F27, IF(Actuals!$C27 = 'Project Parameters'!$B$8, 'Project Parameters'!D$8 * 'Project Parameters'!D$13 * Actuals!$F27, IF(Actuals!$C27 = 'Project Parameters'!$B$9, 'Project Parameters'!D$9 * 'Project Parameters'!D$13 * Actuals!$F27, IF(Actuals!$C27 = 'Project Parameters'!$B$10, 'Project Parameters'!D$10 * 'Project Parameters'!D$13 * Actuals!$F27, IF(Actuals!$C27 = 'Project Parameters'!$B$11, 'Project Parameters'!D$11 * 'Project Parameters'!D$13 * Actuals!$F27,error)))))) -> € 23,625.00 | E26: =IF( Actuals!$C27 = 'Project Parameters'!$B$6, 'Project Parameters'!E$6 * 'Project Parameters'!E$13 * Actuals!$F27, IF(Actuals!$C27 = 'Project Parameters'!$B$7, 'Project Parameters'!E$7 * 'Project Parameters'!E$13 * Actuals!$F27, IF(Actuals!$C27 = 'Project Parameters'!$B$8, 'Project Parameters'!E$8 * 'Project Parameters'!E$13 * Actuals!$F27, IF(Actuals!$C27 = 'Project Parameters'!$B$9, 'Project Parameters'!E$9 * 'Project Parameters'!E$13 * Actuals!$F27, IF(Actuals!$C27 = 'Project Parameters'!$B$10, 'Project Parameters'!E$10 * 'Project Parameters'!E$13 * Actuals!$F27, IF(Actuals!$C27 = 'Project Parameters'!$B$11, 'Project Parameters'!E$11 * 'Project Parameters'!E$13 * Actuals!$F27,error)))))) -> € 21,000.00 | F26: =IF( Actuals!$C27 = 'Project Parameters'!$B$6, 'Project Parameters'!F$6 * 'Project Parameters'!F$13 * Actuals!$F27, IF(Actuals!$C27 = 'Project Parameters'!$B$7, 'Project Parameters'!F$7 * 'Project Parameters'!F$13 * Actuals!$F27, IF(Actuals!$C27 = 'Project Parameters'!$B$8, 'Project Parameters'!F$8 * 'Project Parameters'!F$13 * Actuals!$F27, IF(Actuals!$C27 = 'Project Parameters'!$B$9, 'Project Parameters'!F$9 * 'Project Parameters'!F$13 * Actuals!$F27, IF(Actuals!$C27 = 'Project Parameters'!$B$10, 'Project Parameters'!F$10 * 'Project Parameters'!F$13 * Actuals!$F27, IF(Actuals!$C27 = 'Project Parameters'!$B$11, 'Project Parameters'!F$11 * 'Project Parameters'!F$13 * Actuals!$F27,error)))))) -> € 18,375.00 | G26: =IF( Actuals!$C27 = 'Project Parameters'!$B$6, 'Project Parameters'!G$6 * 'Project Parameters'!G$13 * Actuals!$F27, IF(Actuals!$C27 = 'Project Parameters'!$B$7, 'Project Parameters'!G$7 * 'Project Parameters'!G$13 * Actuals!$F27, IF(Actuals!$C27 = 'Project Parameters'!$B$8, 'Project Parameters'!G$8 * 'Project Parameters'!G$13 * Actuals!$F27, IF(Actuals!$C27 = 'Project Parameters'!$B$9, 'Project Parameters'!G$9 * 'Project Parameters'!G$13 * Actuals!$F27, IF(Actuals!$C27 = 'Project Parameters'!$B$10, 'Project Parameters'!G$10 * 'Project Parameters'!G$13 * Actuals!$F27, IF(Actuals!$C27 = 'Project Parameters'!$B$11, 'Project Parameters'!G$11 * 'Project Parameters'!G$13 * Actuals!$F27,error)))))) -> € 15,750.00 | H26: =IF( Actuals!$C27 = 'Project Parameters'!$B$6, 'Project Parameters'!H$6 * 'Project Parameters'!H$13 * Actuals!$F27, IF(Actuals!$C27 = 'Project Parameters'!$B$7, 'Project Parameters'!H$7 * 'Project Parameters'!H$13 * Actuals!$F27, IF(Actuals!$C27 = 'Project Parameters'!$B$8, 'Project Parameters'!H$8 * 'Project Parameters'!H$13 * Actuals!$F27, IF(Actuals!$C27 = 'Project Parameters'!$B$9, 'Project Parameters'!H$9 * 'Project Parameters'!H$13 * Actuals!$F27, IF(Actuals!$C27 = 'Project Parameters'!$B$10, 'Project Parameters'!H$10 * 'Project Parameters'!H$13 * Actuals!$F27, IF(Actuals!$C27 = 'Project Parameters'!$B$11, 'Project Parameters'!H$11 * 'Project Parameters'!H$13 * Actuals!$F27,error)))))) -> € 2,625.00 | I26: =MONTH(Actuals!E27) -> 12 | J26: € 94,500.00
B27: School of Fine Art | C27: =IF( Actuals!$C28 = 'Project Parameters'!$B$6, 'Project Parameters'!C$6 * 'Project Parameters'!C$13 * Actuals!$F28, IF(Actuals!$C28 = 'Project Parameters'!$B$7, 'Project Parameters'!C$7 * 'Project Parameters'!C$13 * Actuals!$F28, IF(Actuals!$C28 = 'Project Parameters'!$B$8, 'Project Parameters'!C$8 * 'Project Parameters'!C$13 * Actuals!$F28, IF(Actuals!$C28 = 'Project Parameters'!$B$9, 'Project Parameters'!C$9 * 'Project Parameters'!C$13 * Actuals!$F28, IF(Actuals!$C28 = 'Project Parameters'!$B$10, 'Project Parameters'!C$10 * 'Project Parameters'!C$13 * Actuals!$F28, IF(Actuals!$C28 = 'Project Parameters'!$B$11, 'Project Parameters'!C$11 * 'Project Parameters'!C$13 * Actuals!$F28,error)))))) -> € 4,500.00 | D27: =IF( Actuals!$C28 = 'Project Parameters'!$B$6, 'Project Parameters'!D$6 * 'Project Parameters'!D$13 * Actuals!$F28, IF(Actuals!$C28 = 'Project Parameters'!$B$7, 'Project Parameters'!D$7 * 'Project Parameters'!D$13 * Actuals!$F28, IF(Actuals!$C28 = 'Project Parameters'!$B$8, 'Project Parameters'!D$8 * 'Project Parameters'!D$13 * Actuals!$F28, IF(Actuals!$C28 = 'Project Parameters'!$B$9, 'Project Parameters'!D$9 * 'Project Parameters'!D$13 * Actuals!$F28, IF(Actuals!$C28 = 'Project Parameters'!$B$10, 'Project Parameters'!D$10 * 'Project Parameters'!D$13 * Actuals!$F28, IF(Actuals!$C28 = 'Project Parameters'!$B$11, 'Project Parameters'!D$11 * 'Project Parameters'!D$13 * Actuals!$F28,error)))))) -> € 8,100.00 | E27: =IF( Actuals!$C28 = 'Project Parameters'!$B$6, 'Project Parameters'!E$6 * 'Project Parameters'!E$13 * Actuals!$F28, IF(Actuals!$C28 = 'Project Parameters'!$B$7, 'Project Parameters'!E$7 * 'Project Parameters'!E$13 * Actuals!$F28, IF(Actuals!$C28 = 'Project Parameters'!$B$8, 'Project Parameters'!E$8 * 'Project Parameters'!E$13 * Actuals!$F28, IF(Actuals!$C28 = 'Project Parameters'!$B$9, 'Project Parameters'!E$9 * 'Project Parameters'!E$13 * Actuals!$F28, IF(Actuals!$C28 = 'Project Parameters'!$B$10, 'Project Parameters'!E$10 * 'Project Parameters'!E$13 * Actuals!$F28, IF(Actuals!$C28 = 'Project Parameters'!$B$11, 'Project Parameters'!E$11 * 'Project Parameters'!E$13 * Actuals!$F28,error)))))) -> € 3,600.00 | F27: =IF( Actuals!$C28 = 'Project Parameters'!$B$6, 'Project Parameters'!F$6 * 'Project Parameters'!F$13 * Actuals!$F28, IF(Actuals!$C28 = 'Project Parameters'!$B$7, 'Project Parameters'!F$7 * 'Project Parameters'!F$13 * Actuals!$F28, IF(Actuals!$C28 = 'Project Parameters'!$B$8, 'Project Parameters'!F$8 * 'Project Parameters'!F$13 * Actuals!$F28, IF(Actuals!$C28 = 'Project Parameters'!$B$9, 'Project Parameters'!F$9 * 'Project Parameters'!F$13 * Actuals!$F28, IF(Actuals!$C28 = 'Project Parameters'!$B$10, 'Project Parameters'!F$10 * 'Project Parameters'!F$13 * Actuals!$F28, IF(Actuals!$C28 = 'Project Parameters'!$B$11, 'Project Parameters'!F$11 * 'Project Parameters'!F$13 * Actuals!$F28,error)))))) -> € 6,300.00 | G27: =IF( Actuals!$C28 = 'Project Parameters'!$B$6, 'Project Parameters'!G$6 * 'Project Parameters'!G$13 * Actuals!$F28, IF(Actuals!$C28 = 'Project Parameters'!$B$7, 'Project Parameters'!G$7 * 'Project Parameters'!G$13 * Actuals!$F28, IF(Actuals!$C28 = 'Project Parameters'!$B$8, 'Project Parameters'!G$8 * 'Project Parameters'!G$13 * Actuals!$F28, IF(Actuals!$C28 = 'Project Parameters'!$B$9, 'Project Parameters'!G$9 * 'Project Parameters'!G$13 * Actuals!$F28, IF(Actuals!$C28 = 'Project Parameters'!$B$10, 'Project Parameters'!G$10 * 'Project Parameters'!G$13 * Actuals!$F28, IF(Actuals!$C28 = 'Project Parameters'!$B$11, 'Project Parameters'!G$11 * 'Project Parameters'!G$13 * Actuals!$F28,error)))))) -> € 8,100.00 | H27: =IF( Actuals!$C28 = 'Project Parameters'!$B$6, 'Project Parameters'!H$6 * 'Project Parameters'!H$13 * Actuals!$F28, IF(Actuals!$C28 = 'Project Parameters'!$B$7, 'Project Parameters'!H$7 * 'Project Parameters'!H$13 * Actuals!$F28, IF(Actuals!$C28 = 'Project Parameters'!$B$8, 'Project Parameters'!H$8 * 'Project Parameters'!H$13 * Actuals!$F28, IF(Actuals!$C28 = 'Project Parameters'!$B$9, 'Project Parameters'!H$9 * 'Project Parameters'!H$13 * Actuals!$F28, IF(Actuals!$C28 = 'Project Parameters'!$B$10, 'Project Parameters'!H$10 * 'Project Parameters'!H$13 * Actuals!$F28, IF(Actuals!$C28 = 'Project Parameters'!$B$11, 'Project Parameters'!H$11 * 'Project Parameters'!H$13 * Actuals!$F28,error)))))) -> € 900.00 | I27: =MONTH(Actuals!E28) -> 11 | J27: € 31,500.00
B28: Total Billings | C28: =SUM(C6:C27) -> € 189,125.00 | D28: € 307,800.00 | E28: € 280,000.00 | F28: € 292,075.00 | G28: € 242,250.00 | H28: € 37,825.00 | J28: € 1,349,075.00
B29: Total Hours | C29: =C28 / 'Project Parameters'!C13 -> 757 | D29: =D28 / 'Project Parameters'!D13 -> 1,368 | E29: =E28 / 'Project Parameters'!E13 -> 1,400 | F29: =F28 / 'Project Parameters'!F13 -> 1,669 | G29: =G28 / 'Project Parameters'!G13 -> 1,615 | H29: =H28 / 'Project Parameters'!H13 -> 757 | J29: =SUM(C29:H29) -> 7,565

Sheet Monthly Billings
B1: [Company Name]
B2: =Actuals!B2 -> Project Analysis for Business Consulting Firms
B3: Company Confidential
B5: Project name | C5: Month of completion | D5: Total billings | E5: January totals | F5: February totals | G5: March totals | H5: April totals | I5: May totals | J5: June totals | K5: July totals | L5: August totals | M5: September totals | N5: October totals | O5: November totals | P5: December totals
B6: A. Datum Corporation | C6: =MONTH(Actuals!E7) -> 3 | D6: ='Actual Totals'!J6 -> € 37,500.00 | E6: =IF($C6 = 1, $D6, 0) -> 0 | F6: =IF($C6 = 2, $D6, 0) -> 0 | G6: =IF($C6 = 3, $D6, 0) -> € 37,500.00 | H6: =IF($C6 = 4, $D6, 0) -> 0 | I6: =IF($C6 = 5, $D6, 0) -> 0 | J6: =IF($C6 = 6, $D6, 0) -> 0 | K6: =IF($C6 = 7, $D6, 0) -> 0 | L6: =IF($C6 = 8, $D6, 0) -> 0 | M6: =IF($C6 = 9, $D6, 0) -> 0 | N6: =IF($C6 = 10, $D6, 0) -> 0 | O6: =IF($C6 = 11, $D6, 0) -> 0 | P6: =IF($C6 = 12, $D6, 0) -> 0
B7: Adventure Works | C7: =MONTH(Actuals!E8) -> 2 | D7: ='Actual Totals'!J7 -> € 70,000.00 | E7: =IF($C7 = 1, $D7, 0) -> 0 | F7: =IF($C7 = 2, $D7, 0) -> € 70,000.00 | G7: =IF($C7 = 3, $D7, 0) -> 0 | H7: =IF($C7 = 4, $D7, 0) -> 0 | I7: =IF($C7 = 5, $D7, 0) -> 0 | J7: =IF($C7 = 6, $D7, 0) -> 0 | K7: =IF($C7 = 7, $D7, 0) -> 0 | L7: =IF($C7 = 8, $D7, 0) -> 0 | M7: =IF($C7 = 9, $D7, 0) -> 0 | N7: =IF($C7 = 10, $D7, 0) -> 0 | O7: =IF($C7 = 11, $D7, 0) -> 0 | P7: =IF($C7 = 12, $D7, 0) -> 0
B8: Alpine Ski House | C8: =MONTH(Actuals!E9) -> 4 | D8: ='Actual Totals'!J8 -> € 87,500.00 | E8: 0 | F8: 0 | G8: 0 | H8: € 87,500.00 | I8: 0 | J8: 0 | K8: 0 | L8: 0 | M8: 0 | N8: 0 | O8: 0 | P8: 0
B9: Baldwin Museum of Science | C9: =MONTH(Actuals!E10) -> 4 | D9: ='Actual Totals'!J9 -> € 27,000.00 | E9: 0 | F9: 0 | G9: 0 | H9: € 27,000.00 | I9: 0 | J9: 0 | K9: 0 | L9: 0 | M9: 0 | N9: 0 | O9: 0 | P9: 0
B10: Blue Yonder Airlines | C10: =MONTH(Actuals!E11) -> 3 | D10: ='Actual Totals'!J10 -> € 43,750.00 | E10: 0 | F10: 0 | G10: € 43,750.00 | H10: 0 | I10: 0 | J10: 0 | K10: 0 | L10: 0 | M10: 0 | N10: 0 | O10: 0 | P10: 0
B11: City Power & Light | C11: =MONTH(Actuals!E12) -> 4 | D11: ='Actual Totals'!J11 -> € 54,000.00 | E11: 0 | F11: 0 | G11: 0 | H11: € 54,000.00 | I11: 0 | J11: 0 | K11: 0 | L11: 0 | M11: 0 | N11: 0 | O11: 0 | P11: 0
B12: Coho Vineyard | C12: =MONTH(Actuals!E13) -> 4 | D12: ='Actual Totals'!J12 -> € 91,250.00 | E12: 0 | F12: 0 | G12: 0 | H12: € 91,250.00 | I12: 0 | J12: 0 | K12: 0 | L12: 0 | M12: 0 | N12: 0 | O12: 0 | P12: 0
B13: Coho Winery | C13: =MONTH(Actuals!E14) -> 5 | D13: ='Actual Totals'!J13 -> € 131,250.00 | E13: 0 | F13: 0 | G13: 0 | H13: 0 | I13: € 131,250.00 | J13: 0 | K13: 0 | L13: 0 | M13: 0 | N13: 0 | O13: 0 | P13: 0
B14: Coho Vineyard & Winery | C14: =MONTH(Actuals!E15) -> 6 | D14: ='Actual Totals'!J14 -> € 81,000.00 | E14: 0 | F14: 0 | G14: 0 | H14: 0 | I14: 0 | J14: € 81,000.00 | K14: 0 | L14: 0 | M14: 0 | N14: 0 | O14: 0 | P14: 0
B15: Contoso, Ltd. | C15: =MONTH(Actuals!E16) -> 7 | D15: ='Actual Totals'!J15 -> € 43,750.00 | E15: 0 | F15: 0 | G15: 0 | H15: 0 | I15: 0 | J15: 0 | K15: € 43,750.00 | L15: 0 | M15: 0 | N15: 0 | O15: 0 | P15: 0
B16: Contoso Pharmaceuticals | C16: =MONTH(Actuals!E17) -> 8 | D16: ='Actual Totals'!J16 -> € 35,000.00 | E16: 0 | F16: 0 | G16: 0 | H16: 0 | I16: 0 | J16: 0 | K16: 0 | L16: € 35,000.00 | M16: 0 | N16: 0 | O16: 0 | P16: 0
B17: Consolidated Messenger | C17: =MONTH(Actuals!E18) -> 8 | D17: ='Actual Totals'!J17 -> € 32,400.00 | E17: 0 | F17: 0 | G17: 0 | H17: 0 | I17: 0 | J17: 0 | K17: 0 | L17: € 32,400.00 | M17: 0 | N17: 0 | O17: 0 | P17: 0
B18: Fabrikam, Inc. | C18: =MONTH(Actuals!E19) -> 8 | D18: ='Actual Totals'!J18 -> € 43,750.00 | E18: 0 | F18: 0 | G18: 0 | H18: 0 | I18: 0 | J18: 0 | K18: 0 | L18: € 43,750.00 | M18: 0 | N18: 0 | O18: 0 | P18: 0
B19: Fourth Coffee | C19: =MONTH(Actuals!E20) -> 9 | D19: ='Actual Totals'!J19 -> € 43,200.00 | E19: 0 | F19: 0 | G19: 0 | H19: 0 | I19: 0 | J19: 0 | K19: 0 | L19: 0 | M19: € 43,200.00 | N19: 0 | O19: 0 | P19: 0
B20: Graphic Design Institute | C20: =MONTH(Actuals!E21) -> 9 | D20: ='Actual Totals'!J20 -> € 57,600.00 | E20: 0 | F20: 0 | G20: 0 | H20: 0 | I20: 0 | J20: 0 | K20: 0 | L20: 0 | M20: € 57,600.00 | N20: 0 | O20: 0 | P20: 0
B21: Humongous Insurance | C21: =MONTH(Actuals!E22) -> 10 | D21: ='Actual Totals'!J21 -> € 96,250.00 | E21: 0 | F21: 0 | G21: 0 | H21: 0 | I21: 0 | J21: 0 | K21: 0 | L21: 0 | M21: 0 | N21: € 96,250.00 | O21: 0 | P21: 0
B22: Litware, Inc. | C22: =MONTH(Actuals!E23) -> 10 | D22: ='Actual Totals'!J22 -> € 63,875.00 | E22: 0 | F22: 0 | G22: 0 | H22: 0 | I22: 0 | J22: 0 | K22: 0 | L22: 0 | M22: 0 | N22: € 63,875.00 | O22: 0 | P22: 0
B23: Lucerne Publishing | C23: =MONTH(Actuals!E24) -> 11 | D23: ='Actual Totals'!J23 -> € 37,500.00 | E23: 0 | F23: 0 | G23: 0 | H23: 0 | I23: 0 | J23: 0 | K23: 0 | L23: 0 | M23: 0 | N23: 0 | O23: € 37,500.00 | P23: 0
B24: Margie's Travel | C24: =MONTH(Actuals!E25) -> 11 | D24: ='Actual Totals'!J24 -> € 38,500.00 | E24: 0 | F24: 0 | G24: 0 | H24: 0 | I24: 0 | J24: 0 | K24: 0 | L24: 0 | M24: 0 | N24: 0 | O24: € 38,500.00 | P24: 0
B25: Northwind Traders | C25: =MONTH(Actuals!E26) -> 12 | D25: ='Actual Totals'!J25 -> € 108,000.00 | E25: 0 | F25: 0 | G25: 0 | H25: 0 | I25: 0 | J25: 0 | K25: 0 | L25: 0 | M25: 0 | N25: 0 | O25: 0 | P25: € 108,000.00
B26: Proseware, Inc. | C26: =MONTH(Actuals!E27) -> 12 | D26: ='Actual Totals'!J26 -> € 94,500.00 | E26: 0 | F26: 0 | G26: 0 | H26: 0 | I26: 0 | J26: 0 | K26: 0 | L26: 0 | M26: 0 | N26: 0 | O26: 0 | P26: € 94,500.00
B27: School of Fine Art | C27: =MONTH(Actuals!E28) -> 11 | D27: ='Actual Totals'!J27 -> € 31,500.00 | E27: 0 | F27: 0 | G27: 0 | H27: 0 | I27: 0 | J27: 0 | K27: 0 | L27: 0 | M27: 0 | N27: 0 | O27: € 31,500.00 | P27: 0
B28: Monthly Totals | D28: =SUM(D6:D27) -> € 1,349,075.00 | E28: =SUM(E6:E27) -> 0 | F28: € 70,000.00 | G28: € 81,250.00 | H28: € 259,750.00 | I28: € 131,250.00 | J28: € 81,000.00 | K28: € 43,750.00 | L28: € 111,150.00 | M28: € 100,800.00 | N28: € 160,125.00 | O28: € 107,500.00 | P28: € 202,500.00
B29: Accumulative Totals | E29: =E28 -> 0 | F29: =E29+F28 -> € 70,000.00 | G29: € 151,250.00 | H29: € 411,000.00 | I29: € 542,250.00 | J29: € 623,250.00 | K29: € 667,000.00 | L29: € 778,150.00 | M29: € 878,950.00 | N29: € 1,039,075.00 | O29: € 1,146,575.00 | P29: € 1,349,075.00
